Workbook

Sheet toutal
B1: رقم الجارى | C1: بيــــــــــــــــان الأعمــــــــــال | D1: =+جارى!D10 -> ○ رقم العقد :- | E1: =+جارى!D7 -> الشركة او المورد او المقاول | F1: =+جارى!D12 -> ○ رقم الكلاستــر :- | G1: =+جارى!D13 -> ○ رقم الصوبـــــــة:- | H1: =+جارى!G15 -> ما سبق | I1: =+جارى!H15 -> الكمية الحالية | J1: =+جارى!I15 -> إجمالي الكمية | K1: =+جارى!J15 -> قيمة المستخلص | L1: =+جارى!K15 -> قيمة التأمين (10%) | M1: =+جارى!L15 -> قيمة تأمين بيت الخدمه (5%) | N1: =+جارى!M15 -> صافى المستحق | O1: =+جارى!N15 -> الخصم | P1: =+جارى!O15 -> ملاحظــــــــــــــــــــــات
AD2: جارى
A3: جارى | B3: جارى | C3: =IFERROR(INDIRECT($B3&"!d16"),"") -> تركيب مجاري المطر - كمر- تدعيم اكسات- تدعيم كهات | D3: =IFERROR(INDIRECT($B3&"!e10"),"") -> 2023/34 | E3: =IFERROR(INDIRECT($B3&"!e7"),"") -> أحمد حجازى عبدالحكيم | F3: =IFERROR(INDIRECT($B3&"!e12"),"") -> E12 | G3: =IFERROR(INDIRECT($B3&"!e13"),"") -> 2 | H3: =IFERROR(INDIRECT($B3&"!g16"),"") -> 0.5 | I3: =IFERROR(INDIRECT($B3&"!h16"),"") -> 0.1 | J3: =IFERROR(INDIRECT($B3&"!i16"),"") -> 0.6 | K3: =IFERROR(INDIRECT($B3&"!j16"),"") -> 3200 | L3: =IFERROR(INDIRECT($B3&"!k16"),"") -> 320 | M3: =IFERROR(INDIRECT($B3&"!l16"),"") -> 160 | N3: =IFERROR(INDIRECT($B3&"!m16"),"") -> 2720 | O3: =IFERROR(INDIRECT($B3&"!n16"),"") -> 0 | P3: =IFERROR(INDIRECT($B3&"!o16"),"") -> 0 | AD3: جارى3
A4: جارى2 | B4: جارى | C4: =IFERROR(INDIRECT($B4&"!d17"),"") -> الاقواس- المدادات | D4: =IFERROR(INDIRECT($B4&"!e10"),"") -> 2023/34 | E4: =IFERROR(INDIRECT($B4&"!e7"),"") -> أحمد حجازى عبدالحكيم | F4: =IFERROR(INDIRECT($B4&"!e12"),"") -> E12 | G4: =IFERROR(INDIRECT($B4&"!e13"),"") -> 2 | H4: =IFERROR(INDIRECT($B4&"!g17"),"") -> 0.2 | I4: =IFERROR(INDIRECT($B4&"!i17"),"") -> 0.35 | J4: =IFERROR(INDIRECT($B4&"!i17"),"") -> 0.35 | K4: =IFERROR(INDIRECT($B4&"!j17"),"") -> 6300 | L4: =IFERROR(INDIRECT($B4&"!k17"),"") -> 630 | M4: =IFERROR(INDIRECT($B4&"!l17"),"") -> 315 | N4: =IFERROR(INDIRECT($B4&"!m17"),"") -> 5355 | O4: =IFERROR(INDIRECT($B4&"!n17"),"") -> 0 | P4: =IFERROR(INDIRECT($B4&"!o17"),"") -> 0 | AD4: جارى4
A5: جارى3 | B5: جارى | C5: =IFERROR(INDIRECT($B5&"!d18"),"") -> البروفيل | D5: 2023/34 | E5: أحمد حجازى عبدالحكيم | F5: E12 | G5: 2 | H5: =IFERROR(INDIRECT($B5&"!g18"),"") -> 0.3 | I5: =IFERROR(INDIRECT($B5&"!i18"),"") -> 0.6 | J5: =IFERROR(INDIRECT($B5&"!i18"),"") -> 0.6 | K5: =IFERROR(INDIRECT($B5&"!j18"),"") -> 3600 | L5: =IFERROR(INDIRECT($B5&"!k18"),"") -> 360 | M5: =IFERROR(INDIRECT($B5&"!l18"),"") -> 180 | N5: =IFERROR(INDIRECT($B5&"!m18"),"") -> 3060 | O5: =IFERROR(INDIRECT($B5&"!n18"),"") -> 0 | P5: =IFERROR(INDIRECT($B5&"!o18"),"") -> 0 | AD5: جارى5
A6: جارى4 | B6: جارى | C6: =IFERROR(INDIRECT($B6&"!d19"),"") -> البوابات | D6: 2023/34 | E6: أحمد حجازى عبدالحكيم | F6: E12 | G6: 2 | H6: =IFERROR(INDIRECT($B6&"!g19"),"") -> 0.15 | I6: =IFERROR(INDIRECT($B6&"!i19"),"") -> 0.75 | J6: =IFERROR(INDIRECT($B6&"!i19"),"") -> 0.75 | K6: =IFERROR(INDIRECT($B6&"!j19"),"") -> 3600 | L6: =IFERROR(INDIRECT($B6&"!k19"),"") -> 360 | M6: =IFERROR(INDIRECT($B6&"!l19"),"") -> 180 | N6: =IFERROR(INDIRECT($B6&"!m19"),"") -> 3060 | O6: =IFERROR(INDIRECT($B6&"!n19"),"") -> 0 | P6: =IFERROR(INDIRECT($B6&"!o19"),"") -> 0 | AD6: جارى6
B7: جارى | C7: =IFERROR(INDIRECT($B7&"!d20"),"") -> النهايز | D7: 2023/34 | E7: أحمد حجازى عبدالحكيم | F7: E12 | G7: 2 | H7: =IFERROR(INDIRECT($B7&"!g20"),"") -> 0.6 | I7: =IFERROR(INDIRECT($B7&"!i20"),"") -> 0.95 | J7: =IFERROR(INDIRECT($B7&"!i20"),"") -> 0.95 | K7: =IFERROR(INDIRECT($B7&"!j20"),"") -> 2100 | L7: =IFERROR(INDIRECT($B7&"!k20"),"") -> 210 | M7: =IFERROR(INDIRECT($B7&"!l20"),"") -> 105 | N7: =IFERROR(INDIRECT($B7&"!m20"),"") -> 1785 | O7: =IFERROR(INDIRECT($B7&"!n20"),"") -> 0 | P7: =IFERROR(INDIRECT($B7&"!o120"),"") -> 0 | AD7: جارى7
B8: جارى | C8: =IFERROR(INDIRECT($B8&"!d21"),"") -> حامل الثمار | D8: 2023/34 | E8: أحمد حجازى عبدالحكيم | F8: E12 | G8: 2 | H8: =IFERROR(INDIRECT($B8&"!g21"),"") -> 0.7 | I8: =IFERROR(INDIRECT($B8&"!i21"),"") -> 0.95 | J8: =IFERROR(INDIRECT($B8&"!i21"),"") -> 0.95 | K8: =IFERROR(INDIRECT($B8&"!j21"),"") -> 2500 | L8: =IFERROR(INDIRECT($B8&"!k21"),"") -> 250 | M8: =IFERROR(INDIRECT($B8&"!l21"),"") -> 125 | N8: =IFERROR(INDIRECT($B8&"!m21"),"") -> 2125 | O8: =IFERROR(INDIRECT($B8&"!n21"),"") -> 0 | P8: =IFERROR(INDIRECT($B8&"!o121"),"") -> 0 | AD8: جارى8
B9: جارى | C9: =IFERROR(INDIRECT($B9&"!d22"),"") -> النقل | D9: 2023/34 | E9: أحمد حجازى عبدالحكيم | F9: E12 | G9: 2 | H9: =IFERROR(INDIRECT($B9&"!g22"),"") -> 0.9 | I9: =IFERROR(INDIRECT($B9&"!i22"),"") -> 0.95 | J9: =IFERROR(INDIRECT($B9&"!i22"),"") -> 0.95 | K9: =IFERROR(INDIRECT($B9&"!j22"),"") -> 350 | L9: =IFERROR(INDIRECT($B9&"!k22"),"") -> 35 | M9: =IFERROR(INDIRECT($B9&"!l22"),"") -> 17.5 | N9: =IFERROR(INDIRECT($B9&"!m22"),"") -> 297.5 | O9: =IFERROR(INDIRECT($B9&"!n22"),"") -> 0 | P9: =IFERROR(INDIRECT($B9&"!o22"),"") -> 0 | AD9: جارى9
B10: جارى2 | C10: =IFERROR(INDIRECT($B10&"!d16"),"") -> تركيب مجاري المطر - كمر- تدعيم اكسات- تدعيم كهات | D10: =IFERROR(INDIRECT($B10&"!e10"),"") -> 2023/34 | E10: =IFERROR(INDIRECT($B10&"!e7"),"") -> أحمد حجازى عبدالحكيم | F10: =IFERROR(INDIRECT($B10&"!e12"),"") -> E12 | G10: =IFERROR(INDIRECT($B10&"!e13"),"") -> 2 | H10: =IFERROR(INDIRECT($B10&"!g16"),"") -> 0.6 | I10: =IFERROR(INDIRECT($B10&"!h16"),"") -> 0.3 | J10: 0.9 | K10: 9600 | L10: 960 | M10: 480 | N10: 8160 | O10: =IFERROR(INDIRECT($B10&"!n16"),"") -> 0 | P10: 0 | AD10: جارى10
B11: جارى2 | C11: =IFERROR(INDIRECT($B11&"!d17"),"") -> الاقواس- المدادات | D11: 2023/34 | E11: أحمد حجازى عبدالحكيم | F11: E12 | G11: 2 | H11: =IFERROR(INDIRECT($B11&"!g17"),"") -> 0.35 | I11: =IFERROR(INDIRECT($B11&"!i17"),"") -> 0.5 | J11: =IFERROR(INDIRECT($B11&"!i17"),"") -> 0.5 | K11: =IFERROR(INDIRECT($B11&"!j17"),"") -> 6300 | L11: =IFERROR(INDIRECT($B11&"!k17"),"") -> 630 | M11: =IFERROR(INDIRECT($B11&"!l17"),"") -> 315 | N11: =IFERROR(INDIRECT($B11&"!m17"),"") -> 5355 | O11: =IFERROR(INDIRECT($B11&"!n17"),"") -> 0 | P11: =IFERROR(INDIRECT($B11&"!o17"),"") -> 0 | AD11: جارى11
B12: جارى2 | C12: =IFERROR(INDIRECT($B12&"!d18"),"") -> البروفيل | D12: 2023/34 | E12: أحمد حجازى عبدالحكيم | F12: E12 | G12: 2 | H12: =IFERROR(INDIRECT($B12&"!g18"),"") -> 0.6 | I12: =IFERROR(INDIRECT($B12&"!i18"),"") -> 0.8 | J12: =IFERROR(INDIRECT($B12&"!i18"),"") -> 0.8 | K12: =IFERROR(INDIRECT($B12&"!j18"),"") -> 2400 | L12: =IFERROR(INDIRECT($B12&"!k18"),"") -> 240 | M12: =IFERROR(INDIRECT($B12&"!l18"),"") -> 120 | N12: =IFERROR(INDIRECT($B12&"!m18"),"") -> 2040 | O12: =IFERROR(INDIRECT($B12&"!n18"),"") -> 0 | P12: =IFERROR(INDIRECT($B12&"!o18"),"") -> 0 | AD12: جارى12
B13: جارى2 | C13: =IFERROR(INDIRECT($B13&"!d19"),"") -> البوابات | D13: 2023/34 | E13: أحمد حجازى عبدالحكيم | F13: E12 | G13: 2 | H13: =IFERROR(INDIRECT($B13&"!g19"),"") -> 0.75 | I13: =IFERROR(INDIRECT($B13&"!i19"),"") -> 0.85 | J13: =IFERROR(INDIRECT($B13&"!i19"),"") -> 0.85 | K13: =IFERROR(INDIRECT($B13&"!j19"),"") -> 600 | L13: =IFERROR(INDIRECT($B13&"!k19"),"") -> 60 | M13: =IFERROR(INDIRECT($B13&"!l19"),"") -> 30 | N13: =IFERROR(INDIRECT($B13&"!m19"),"") -> 510 | O13: =IFERROR(INDIRECT($B13&"!n19"),"") -> 0 | P13: =IFERROR(INDIRECT($B13&"!o19"),"") -> 0 | AD13: جارى13
B14: جارى2 | C14: =IFERROR(INDIRECT($B14&"!d20"),"") -> النهايز | D14: 2023/34 | E14: أحمد حجازى عبدالحكيم | F14: E12 | G14: 2 | H14: =IFERROR(INDIRECT($B14&"!g20"),"") -> 0.95 | I14: =IFERROR(INDIRECT($B14&"!i20"),"") -> 0.95 | J14: =IFERROR(INDIRECT($B14&"!i20"),"") -> 0.95 | K14: =IFERROR(INDIRECT($B14&"!j20"),"") -> 0 | L14: =IFERROR(INDIRECT($B14&"!k20"),"") -> 0 | M14: =IFERROR(INDIRECT($B14&"!l20"),"") -> 0 | N14: =IFERROR(INDIRECT($B14&"!m20"),"") -> 0 | O14: =IFERROR(INDIRECT($B14&"!n20"),"") -> 0 | P14: =IFERROR(INDIRECT($B14&"!o120"),"") -> 0 | AD14: جارى14
B15: جارى2 | C15: =IFERROR(INDIRECT($B15&"!d21"),"") -> حامل الثمار | D15: 2023/34 | E15: أحمد حجازى عبدالحكيم | F15: E12 | G15: 2 | H15: =IFERROR(INDIRECT($B15&"!g21"),"") -> 0.95 | I15: =IFERROR(INDIRECT($B15&"!i21"),"") -> 0.95 | J15: =IFERROR(INDIRECT($B15&"!i21"),"") -> 0.95 | K15: =IFERROR(INDIRECT($B15&"!j21"),"") -> 0 | L15: =IFERROR(INDIRECT($B15&"!k21"),"") -> 0 | M15: =IFERROR(INDIRECT($B15&"!l21"),"") -> 0 | N15: =IFERROR(INDIRECT($B15&"!m21"),"") -> 0 | O15: =IFERROR(INDIRECT($B15&"!n21"),"") -> 0 | P15: =IFERROR(INDIRECT($B15&"!o121"),"") -> 0 | AD15: جارى15
B16: جارى2 | C16: =IFERROR(INDIRECT($B16&"!d22"),"") -> النقل | D16: 2023/34 | E16: أحمد حجازى عبدالحكيم | F16: E12 | G16: 2 | H16: =IFERROR(INDIRECT($B16&"!g22"),"") -> 0.95 | I16: =IFERROR(INDIRECT($B16&"!i22"),"") -> 0.95 | J16: =IFERROR(INDIRECT($B16&"!i22"),"") -> 0.95 | K16: =IFERROR(INDIRECT($B16&"!j22"),"") -> 0 | L16: =IFERROR(INDIRECT($B16&"!k22"),"") -> 0 | M16: =IFERROR(INDIRECT($B16&"!l22"),"") -> 0 | N16: =IFERROR(INDIRECT($B16&"!m22"),"") -> 0 | O16: =IFERROR(INDIRECT($B16&"!n22"),"") -> 0 | P16: =IFERROR(INDIRECT($B16&"!o22"),"") -> 0 | AD16: جارى16
B17: جارى3 | C17: =IFERROR(INDIRECT($B17&"!d16"),"") -> تركيب مجاري المطر - كمر- تدعيم اكسات- تدعيم كهات | D17: =IFERROR(INDIRECT($B17&"!e10"),"") -> 2023/34 | E17: =IFERROR(INDIRECT($B17&"!e7"),"") -> أحمد حجازى عبدالحكيم | F17: =IFERROR(INDIRECT($B17&"!e12"),"") -> E12 | G17: =IFERROR(INDIRECT($B17&"!e13"),"") -> 2 | H17: =IFERROR(INDIRECT($B17&"!g16"),"") -> 0.9 | I17: =IFERROR(INDIRECT($B17&"!h16"),"") -> 0.05 | J17: 0.95 | K17: 1600 | L17: 160 | M17: 80 | N17: 1360 | O17: =IFERROR(INDIRECT($B17&"!n16"),"") -> 0 | P17: 0 | AD17: جارى17
B18: جارى3 | C18: =IFERROR(INDIRECT($B18&"!d17"),"") -> الاقواس- المدادات | D18: 2023/34 | E18: أحمد حجازى عبدالحكيم | F18: E12 | G18: 2 | H18: =IFERROR(INDIRECT($B18&"!g17"),"") -> 0.5 | I18: =IFERROR(INDIRECT($B18&"!i17"),"") -> 0.8 | J18: =IFERROR(INDIRECT($B18&"!i17"),"") -> 0.8 | K18: =IFERROR(INDIRECT($B18&"!j17"),"") -> 12600 | L18: =IFERROR(INDIRECT($B18&"!k17"),"") -> 1260 | M18: =IFERROR(INDIRECT($B18&"!l17"),"") -> 630 | N18: =IFERROR(INDIRECT($B18&"!m17"),"") -> 10710 | O18: =IFERROR(INDIRECT($B18&"!n17"),"") -> 0 | P18: =IFERROR(INDIRECT($B18&"!o17"),"") -> 0 | AD18: جارى18
B19: جارى3 | C19: =IFERROR(INDIRECT($B19&"!d18"),"") -> البروفيل | D19: 2023/34 | E19: أحمد حجازى عبدالحكيم | F19: E12 | G19: 2 | H19: =IFERROR(INDIRECT($B19&"!g18"),"") -> 0.8 | I19: =IFERROR(INDIRECT($B19&"!i18"),"") -> 0.8 | J19: =IFERROR(INDIRECT($B19&"!i18"),"") -> 0.8 | K19: =IFERROR(INDIRECT($B19&"!j18"),"") -> 0 | L19: =IFERROR(INDIRECT($B19&"!k18"),"") -> 0 | M19: =IFERROR(INDIRECT($B19&"!l18"),"") -> 0 | N19: =IFERROR(INDIRECT($B19&"!m18"),"") -> 0 | O19: =IFERROR(INDIRECT($B19&"!n18"),"") -> 0 | P19: =IFERROR(INDIRECT($B19&"!o18"),"") -> 0 | AD19: جارى19
B20: جارى3 | C20: =IFERROR(INDIRECT($B20&"!d19"),"") -> البوابات | D20: 2023/34 | E20: أحمد حجازى عبدالحكيم | F20: E12 | G20: 2 | H20: =IFERROR(INDIRECT($B20&"!g19"),"") -> 0.85 | I20: =IFERROR(INDIRECT($B20&"!i19"),"") -> 0.85 | J20: =IFERROR(INDIRECT($B20&"!i19"),"") -> 0.85 | K20: =IFERROR(INDIRECT($B20&"!j19"),"") -> 0 | L20: =IFERROR(INDIRECT($B20&"!k19"),"") -> 0 | M20: =IFERROR(INDIRECT($B20&"!l19"),"") -> 0 | N20: =IFERROR(INDIRECT($B20&"!m19"),"") -> 0 | O20: =IFERROR(INDIRECT($B20&"!n19"),"") -> 0 | P20: =IFERROR(INDIRECT($B20&"!o19"),"") -> 0 | AD20: جارى20
B21: جارى3 | C21: =IFERROR(INDIRECT($B21&"!d20"),"") -> النهايز | D21: 2023/34 | E21: أحمد حجازى عبدالحكيم | F21: E12 | G21: 2 | H21: =IFERROR(INDIRECT($B21&"!g20"),"") -> 0.95 | I21: =IFERROR(INDIRECT($B21&"!i20"),"") -> 0.95 | J21: =IFERROR(INDIRECT($B21&"!i20"),"") -> 0.95 | K21: =IFERROR(INDIRECT($B21&"!j20"),"") -> 0 | L21: =IFERROR(INDIRECT($B21&"!k20"),"") -> 0 | M21: =IFERROR(INDIRECT($B21&"!l20"),"") -> 0 | N21: =IFERROR(INDIRECT($B21&"!m20"),"") -> 0 | O21: =IFERROR(INDIRECT($B21&"!n20"),"") -> 0 | P21: =IFERROR(INDIRECT($B21&"!o120"),"") -> 0 | AD21: جارى21
B22: جارى3 | C22: =IFERROR(INDIRECT($B22&"!d21"),"") -> حامل الثمار | D22: 2023/34 | E22: أحمد حجازى عبدالحكيم | F22: E12 | G22: 2 | H22: =IFERROR(INDIRECT($B22&"!g21"),"") -> 0.95 | I22: =IFERROR(INDIRECT($B22&"!i21"),"") -> 0.95 | J22: =IFERROR(INDIRECT($B22&"!i21"),"") -> 0.95 | K22: =IFERROR(INDIRECT($B22&"!j21"),"") -> 0 | L22: =IFERROR(INDIRECT($B22&"!k21"),"") -> 0 | M22: =IFERROR(INDIRECT($B22&"!l21"),"") -> 0 | N22: =IFERROR(INDIRECT($B22&"!m21"),"") -> 0 | O22: =IFERROR(INDIRECT($B22&"!n21"),"") -> 0 | P22: =IFERROR(INDIRECT($B22&"!o121"),"") -> 0 | AD22: جارى22
B23: جارى3 | C23: =IFERROR(INDIRECT($B23&"!d22"),"") -> النقل | D23: 2023/34 | E23: أحمد حجازى عبدالحكيم | F23: E12 | G23: 2 | H23: =IFERROR(INDIRECT($B23&"!g22"),"") -> 0.95 | I23: =IFERROR(INDIRECT($B23&"!i22"),"") -> 0.95 | J23: =IFERROR(INDIRECT($B23&"!i22"),"") -> 0.95 | K23: =IFERROR(INDIRECT($B23&"!j22"),"") -> 0 | L23: =IFERROR(INDIRECT($B23&"!k22"),"") -> 0 | M23: =IFERROR(INDIRECT($B23&"!l22"),"") -> 0 | N23: =IFERROR(INDIRECT($B23&"!m22"),"") -> 0 | O23: =IFERROR(INDIRECT($B23&"!n22"),"") -> 0 | P23: =IFERROR(INDIRECT($B23&"!o22"),"") -> 0 | AD23: جارى23
B24: جارى4 | C24: =IFERROR(INDIRECT($B24&"!d16"),"") -> تركيب مجاري المطر - كمر- تدعيم اكسات- تدعيم كهات | D24: 2023/34 | E24: أحمد حجازى عبدالحكيم | F24: E12 | G24: 2 | H24: =IFERROR(INDIRECT($B24&"!g16"),"") -> 0.5 | I24: =IFERROR(INDIRECT($B24&"!h16"),"") -> 0.1 | J24: =IFERROR(INDIRECT($B24&"!i16"),"") -> 0.6 | K24: =IFERROR(INDIRECT($B24&"!j16"),"") -> 3200 | L24: =IFERROR(INDIRECT($B24&"!k16"),"") -> 320 | M24: =IFERROR(INDIRECT($B24&"!l16"),"") -> 160 | N24: =IFERROR(INDIRECT($B24&"!m16"),"") -> 2720 | O24: =IFERROR(INDIRECT($B24&"!n16"),"") -> 0 | P24: =IFERROR(INDIRECT($B24&"!o16"),"") -> 0 | AD24: جارى24
C25: =IFERROR(INDIRECT($B25&"!d17"),"") ->  | H25: =IFERROR(INDIRECT($B25&"!g17"),"") ->  | I25: =IFERROR(INDIRECT($B25&"!i17"),"") ->  | K25: =IFERROR(INDIRECT($B25&"!j17"),"") ->  | L25: =IFERROR(INDIRECT($B25&"!k17"),"") ->  | M25: =IFERROR(INDIRECT($B25&"!l17"),"") ->  | N25: =IFERROR(INDIRECT($B25&"!m17"),"") ->  | O25: =IFERROR(INDIRECT($B25&"!n17"),"") ->  | P25: =IFERROR(INDIRECT($B25&"!o17"),"") ->  | AD25: جارى25
C26: =IFERROR(INDIRECT($B26&"!d18"),"") ->  | H26: =IFERROR(INDIRECT($B26&"!g18"),"") ->  | I26: =IFERROR(INDIRECT($B26&"!i18"),"") ->  | K26: =IFERROR(INDIRECT($B26&"!j18"),"") ->  | L26: =IFERROR(INDIRECT($B26&"!k18"),"") ->  | M26: =IFERROR(INDIRECT($B26&"!l18"),"") ->  | N26: =IFERROR(INDIRECT($B26&"!m18"),"") ->  | O26: =IFERROR(INDIRECT($B26&"!n18"),"") ->  | P26: =IFERROR(INDIRECT($B26&"!o18"),"") ->  | AD26: جارى26
C27: =IFERROR(INDIRECT($B27&"!d19"),"") ->  | H27: =IFERROR(INDIRECT($B27&"!g19"),"") ->  | I27: =IFERROR(INDIRECT($B27&"!i19"),"") ->  | K27: =IFERROR(INDIRECT($B27&"!j19"),"") ->  | L27: =IFERROR(INDIRECT($B27&"!k19"),"") ->  | M27: =IFERROR(INDIRECT($B27&"!l19"),"") ->  | N27: =IFERROR(INDIRECT($B27&"!m19"),"") ->  | O27: =IFERROR(INDIRECT($B27&"!n19"),"") ->  | P27: =IFERROR(INDIRECT($B27&"!o19"),"") ->  | AD27: جارى27
C28: =IFERROR(INDIRECT($B28&"!d20"),"") ->  | H28: =IFERROR(INDIRECT($B28&"!g20"),"") ->  | I28: =IFERROR(INDIRECT($B28&"!i20"),"") ->  | K28: =IFERROR(INDIRECT($B28&"!j20"),"") ->  | L28: =IFERROR(INDIRECT($B28&"!k20"),"") ->  | M28: =IFERROR(INDIRECT($B28&"!l20"),"") ->  | N28: =IFERROR(INDIRECT($B28&"!m20"),"") ->  | O28: =IFERROR(INDIRECT($B28&"!n20"),"") ->  | P28: =IFERROR(INDIRECT($B28&"!o120"),"") ->  | AD28: جارى28
C29: =IFERROR(INDIRECT($B29&"!d21"),"") ->  | H29: =IFERROR(INDIRECT($B29&"!g21"),"") ->  | I29: =IFERROR(INDIRECT($B29&"!i21"),"") ->  | K29: =IFERROR(INDIRECT($B29&"!j21"),"") ->  | L29: =IFERROR(INDIRECT($B29&"!k21"),"") ->  | M29: =IFERROR(INDIRECT($B29&"!l21"),"") ->  | N29: =IFERROR(INDIRECT($B29&"!m21"),"") ->  | O29: =IFERROR(INDIRECT($B29&"!n21"),"") ->  | P29: =IFERROR(INDIRECT($B29&"!o121"),"") ->  | AD29: جارى29
C30: =IFERROR(INDIRECT($B30&"!d22"),"") ->  | H30: =IFERROR(INDIRECT($B30&"!g22"),"") ->  | I30: =IFERROR(INDIRECT($B30&"!i22"),"") ->  | K30: =IFERROR(INDIRECT($B30&"!j22"),"") ->  | L30: =IFERROR(INDIRECT($B30&"!k22"),"") ->  | M30: =IFERROR(INDIRECT($B30&"!l22"),"") ->  | N30: =IFERROR(INDIRECT($B30&"!m22"),"") ->  | O30: =IFERROR(INDIRECT($B30&"!n22"),"") ->  | P30: =IFERROR(INDIRECT($B30&"!o22"),"") ->  | AD30: جارى30
C31: =IFERROR(INDIRECT($B31&"!d16"),"") ->  | H31: =IFERROR(INDIRECT($B31&"!g16"),"") ->  | I31: =IFERROR(INDIRECT($B31&"!h16"),"") ->  | O31: =IFERROR(INDIRECT($B31&"!n16"),"") ->  | AD31: جارى31
C32: =IFERROR(INDIRECT($B32&"!d17"),"") ->  | H32: =IFERROR(INDIRECT($B32&"!g17"),"") ->  | I32: =IFERROR(INDIRECT($B32&"!i17"),"") ->  | K32: =IFERROR(INDIRECT($B32&"!j17"),"") ->  | L32: =IFERROR(INDIRECT($B32&"!k17"),"") ->  | M32: =IFERROR(INDIRECT($B32&"!l17"),"") ->  | N32: =IFERROR(INDIRECT($B32&"!m17"),"") ->  | O32: =IFERROR(INDIRECT($B32&"!n17"),"") ->  | P32: =IFERROR(INDIRECT($B32&"!o17"),"") ->  | AD32: جارى32
C33: =IFERROR(INDIRECT($B33&"!d18"),"") ->  | H33: =IFERROR(INDIRECT($B33&"!g18"),"") ->  | I33: =IFERROR(INDIRECT($B33&"!i18"),"") ->  | K33: =IFERROR(INDIRECT($B33&"!j18"),"") ->  | L33: =IFERROR(INDIRECT($B33&"!k18"),"") ->  | M33: =IFERROR(INDIRECT($B33&"!l18"),"") ->  | N33: =IFERROR(INDIRECT($B33&"!m18"),"") ->  | O33: =IFERROR(INDIRECT($B33&"!n18"),"") ->  | P33: =IFERROR(INDIRECT($B33&"!o18"),"") ->  | AD33: جارى33
C34: =IFERROR(INDIRECT($B34&"!d19"),"") ->  | H34: =IFERROR(INDIRECT($B34&"!g19"),"") ->  | I34: =IFERROR(INDIRECT($B34&"!i19"),"") ->  | K34: =IFERROR(INDIRECT($B34&"!j19"),"") ->  | L34: =IFERROR(INDIRECT($B34&"!k19"),"") ->  | M34: =IFERROR(INDIRECT($B34&"!l19"),"") ->  | N34: =IFERROR(INDIRECT($B34&"!m19"),"") ->  | O34: =IFERROR(INDIRECT($B34&"!n19"),"") ->  | P34: =IFERROR(INDIRECT($B34&"!o19"),"") ->  | AD34: جارى34
C35: =IFERROR(INDIRECT($B35&"!d20"),"") ->  | H35: =IFERROR(INDIRECT($B35&"!g20"),"") ->  | I35: =IFERROR(INDIRECT($B35&"!i20"),"") ->  | K35: =IFERROR(INDIRECT($B35&"!j20"),"") ->  | L35: =IFERROR(INDIRECT($B35&"!k20"),"") ->  | M35: =IFERROR(INDIRECT($B35&"!l20"),"") ->  | N35: =IFERROR(INDIRECT($B35&"!m20"),"") ->  | O35: =IFERROR(INDIRECT($B35&"!n20"),"") ->  | P35: =IFERROR(INDIRECT($B35&"!o120"),"") ->  | AD35: جارى35
C36: =IFERROR(INDIRECT($B36&"!d21"),"") ->  | H36: =IFERROR(INDIRECT($B36&"!g21"),"") ->  | I36: =IFERROR(INDIRECT($B36&"!i21"),"") ->  | K36: =IFERROR(INDIRECT($B36&"!j21"),"") ->  | L36: =IFERROR(INDIRECT($B36&"!k21"),"") ->  | M36: =IFERROR(INDIRECT($B36&"!l21"),"") ->  | N36: =IFERROR(INDIRECT($B36&"!m21"),"") ->  | O36: =IFERROR(INDIRECT($B36&"!n21"),"") ->  | P36: =IFERROR(INDIRECT($B36&"!o121"),"") ->  | AD36: جارى36
C37: =IFERROR(INDIRECT($B37&"!d22"),"") ->  | H37: =IFERROR(INDIRECT($B37&"!g22"),"") ->  | I37: =IFERROR(INDIRECT($B37&"!i22"),"") ->  | K37: =IFERROR(INDIRECT($B37&"!j22"),"") ->  | L37: =IFERROR(INDIRECT($B37&"!k22"),"") ->  | M37: =IFERROR(INDIRECT($B37&"!l22"),"") ->  | N37: =IFERROR(INDIRECT($B37&"!m22"),"") ->  | O37: =IFERROR(INDIRECT($B37&"!n22"),"") ->  | P37: =IFERROR(INDIRECT($B37&"!o22"),"") ->  | AD37: جارى37
C38: =IFERROR(INDIRECT($B38&"!d16"),"") ->  | H38: =IFERROR(INDIRECT($B38&"!g16"),"") ->  | I38: =IFERROR(INDIRECT($B38&"!h16"),"") ->  | O38: =IFERROR(INDIRECT($B38&"!n16"),"") ->  | AD38: جارى38
C39: =IFERROR(INDIRECT($B39&"!d17"),"") ->  | H39: =IFERROR(INDIRECT($B39&"!g17"),"") ->  | I39: =IFERROR(INDIRECT($B39&"!i17"),"") ->  | K39: =IFERROR(INDIRECT($B39&"!j17"),"") ->  | L39: =IFERROR(INDIRECT($B39&"!k17"),"") ->  | M39: =IFERROR(INDIRECT($B39&"!l17"),"") ->  | N39: =IFERROR(INDIRECT($B39&"!m17"),"") ->  | O39: =IFERROR(INDIRECT($B39&"!n17"),"") ->  | P39: =IFERROR(INDIRECT($B39&"!o17"),"") ->  | AD39: جارى39
C40: =IFERROR(INDIRECT($B40&"!d18"),"") ->  | H40: =IFERROR(INDIRECT($B40&"!g18"),"") ->  | I40: =IFERROR(INDIRECT($B40&"!i18"),"") ->  | K40: =IFERROR(INDIRECT($B40&"!j18"),"") ->  | L40: =IFERROR(INDIRECT($B40&"!k18"),"") ->  | M40: =IFERROR(INDIRECT($B40&"!l18"),"") ->  | N40: =IFERROR(INDIRECT($B40&"!m18"),"") ->  | O40: =IFERROR(INDIRECT($B40&"!n18"),"") ->  | P40: =IFERROR(INDIRECT($B40&"!o18"),"") ->  | AD40: جارى40
C41: =IFERROR(INDIRECT($B41&"!d19"),"") ->  | H41: =IFERROR(INDIRECT($B41&"!g19"),"") ->  | I41: =IFERROR(INDIRECT($B41&"!i19"),"") ->  | K41: =IFERROR(INDIRECT($B41&"!j19"),"") ->  | L41: =IFERROR(INDIRECT($B41&"!k19"),"") ->  | M41: =IFERROR(INDIRECT($B41&"!l19"),"") ->  | N41: =IFERROR(INDIRECT($B41&"!m19"),"") ->  | O41: =IFERROR(INDIRECT($B41&"!n19"),"") ->  | P41: =IFERROR(INDIRECT($B41&"!o19"),"") ->  | AD41: جارى41
C42: =IFERROR(INDIRECT($B42&"!d20"),"") ->  | H42: =IFERROR(INDIRECT($B42&"!g20"),"") ->  | I42: =IFERROR(INDIRECT($B42&"!i20"),"") ->  | K42: =IFERROR(INDIRECT($B42&"!j20"),"") ->  | L42: =IFERROR(INDIRECT($B42&"!k20"),"") ->  | M42: =IFERROR(INDIRECT($B42&"!l20"),"") ->  | N42: =IFERROR(INDIRECT($B42&"!m20"),"") ->  | O42: =IFERROR(INDIRECT($B42&"!n20"),"") ->  | P42: =IFERROR(INDIRECT($B42&"!o120"),"") ->  | AD42: جارى42
C43: =IFERROR(INDIRECT($B43&"!d21"),"") ->  | H43: =IFERROR(INDIRECT($B43&"!g21"),"") ->  | I43: =IFERROR(INDIRECT($B43&"!i21"),"") ->  | K43: =IFERROR(INDIRECT($B43&"!j21"),"") ->  | L43: =IFERROR(INDIRECT($B43&"!k21"),"") ->  | M43: =IFERROR(INDIRECT($B43&"!l21"),"") ->  | N43: =IFERROR(INDIRECT($B43&"!m21"),"") ->  | O43: =IFERROR(INDIRECT($B43&"!n21"),"") ->  | P43: =IFERROR(INDIRECT($B43&"!o121"),"") ->  | AD43: جارى43
C44: =IFERROR(INDIRECT($B44&"!d22"),"") ->  | H44: =IFERROR(INDIRECT($B44&"!g22"),"") ->  | I44: =IFERROR(INDIRECT($B44&"!i22"),"") ->  | K44: =IFERROR(INDIRECT($B44&"!j22"),"") ->  | L44: =IFERROR(INDIRECT($B44&"!k22"),"") ->  | M44: =IFERROR(INDIRECT($B44&"!l22"),"") ->  | N44: =IFERROR(INDIRECT($B44&"!m22"),"") ->  | O44: =IFERROR(INDIRECT($B44&"!n22"),"") ->  | P44: =IFERROR(INDIRECT($B44&"!o22"),"") ->  | AD44: جارى44
C45: =IFERROR(INDIRECT($B45&"!d16"),"") ->  | H45: =IFERROR(INDIRECT($B45&"!g16"),"") ->  | I45: =IFERROR(INDIRECT($B45&"!h16"),"") ->  | O45: =IFERROR(INDIRECT($B45&"!n16"),"") ->  | AD45: جارى45
C46: =IFERROR(INDIRECT($B46&"!d17"),"") ->  | H46: =IFERROR(INDIRECT($B46&"!g17"),"") ->  | I46: =IFERROR(INDIRECT($B46&"!i17"),"") ->  | K46: =IFERROR(INDIRECT($B46&"!j17"),"") ->  | L46: =IFERROR(INDIRECT($B46&"!k17"),"") ->  | M46: =IFERROR(INDIRECT($B46&"!l17"),"") ->  | N46: =IFERROR(INDIRECT($B46&"!m17"),"") ->  | O46: =IFERROR(INDIRECT($B46&"!n17"),"") ->  | P46: =IFERROR(INDIRECT($B46&"!o17"),"") ->  | AD46: جارى46
C47: =IFERROR(INDIRECT($B47&"!d18"),"") ->  | H47: =IFERROR(INDIRECT($B47&"!g18"),"") ->  | I47: =IFERROR(INDIRECT($B47&"!i18"),"") ->  | K47: =IFERROR(INDIRECT($B47&"!j18"),"") ->  | L47: =IFERROR(INDIRECT($B47&"!k18"),"") ->  | M47: =IFERROR(INDIRECT($B47&"!l18"),"") ->  | N47: =IFERROR(INDIRECT($B47&"!m18"),"") ->  | O47: =IFERROR(INDIRECT($B47&"!n18"),"") ->  | P47: =IFERROR(INDIRECT($B47&"!o18"),"") ->  | AD47: جارى47
C48: =IFERROR(INDIRECT($B48&"!d19"),"") ->  | H48: =IFERROR(INDIRECT($B48&"!g19"),"") ->  | I48: =IFERROR(INDIRECT($B48&"!i19"),"") ->  | K48: =IFERROR(INDIRECT($B48&"!j19"),"") ->  | L48: =IFERROR(INDIRECT($B48&"!k19"),"") ->  | M48: =IFERROR(INDIRECT($B48&"!l19"),"") ->  | N48: =IFERROR(INDIRECT($B48&"!m19"),"") ->  | O48: =IFERROR(INDIRECT($B48&"!n19"),"") ->  | P48: =IFERROR(INDIRECT($B48&"!o19"),"") ->  | AD48: جارى48
C49: =IFERROR(INDIRECT($B49&"!d20"),"") ->  | H49: =IFERROR(INDIRECT($B49&"!g20"),"") ->  | I49: =IFERROR(INDIRECT($B49&"!i20"),"") ->  | K49: =IFERROR(INDIRECT($B49&"!j20"),"") ->  | L49: =IFERROR(INDIRECT($B49&"!k20"),"") ->  | M49: =IFERROR(INDIRECT($B49&"!l20"),"") ->  | N49: =IFERROR(INDIRECT($B49&"!m20"),"") ->  | O49: =IFERROR(INDIRECT($B49&"!n20"),"") ->  | P49: =IFERROR(INDIRECT($B49&"!o120"),"") ->  | AD49: جارى49
C50: =IFERROR(INDIRECT($B50&"!d21"),"") ->  | H50: =IFERROR(INDIRECT($B50&"!g21"),"") ->  | I50: =IFERROR(INDIRECT($B50&"!i21"),"") ->  | K50: =IFERROR(INDIRECT($B50&"!j21"),"") ->  | L50: =IFERROR(INDIRECT($B50&"!k21"),"") ->  | M50: =IFERROR(INDIRECT($B50&"!l21"),"") ->  | N50: =IFERROR(INDIRECT($B50&"!m21"),"") ->  | O50: =IFERROR(INDIRECT($B50&"!n21"),"") ->  | P50: =IFERROR(INDIRECT($B50&"!o121"),"") ->  | AD50: جارى50
C51: =IFERROR(INDIRECT($B51&"!d22"),"") ->  | H51: =IFERROR(INDIRECT($B51&"!g22"),"") ->  | I51: =IFERROR(INDIRECT($B51&"!i22"),"") ->  | K51: =IFERROR(INDIRECT($B51&"!j22"),"") ->  | L51: =IFERROR(INDIRECT($B51&"!k22"),"") ->  | M51: =IFERROR(INDIRECT($B51&"!l22"),"") ->  | N51: =IFERROR(INDIRECT($B51&"!m22"),"") ->  | O51: =IFERROR(INDIRECT($B51&"!n22"),"") ->  | P51: =IFERROR(INDIRECT($B51&"!o22"),"") ->  | AD51: جارى51
C52: =IFERROR(INDIRECT($B52&"!d16"),"") ->  | H52: =IFERROR(INDIRECT($B52&"!g16"),"") ->  | I52: =IFERROR(INDIRECT($B52&"!h16"),"") ->  | O52: =IFERROR(INDIRECT($B52&"!n16"),"") ->  | AD52: جارى52
C53: =IFERROR(INDIRECT($B53&"!d17"),"") ->  | H53: =IFERROR(INDIRECT($B53&"!g17"),"") ->  | I53: =IFERROR(INDIRECT($B53&"!i17"),"") ->  | K53: =IFERROR(INDIRECT($B53&"!j17"),"") ->  | L53: =IFERROR(INDIRECT($B53&"!k17"),"") ->  | M53: =IFERROR(INDIRECT($B53&"!l17"),"") ->  | N53: =IFERROR(INDIRECT($B53&"!m17"),"") ->  | O53: =IFERROR(INDIRECT($B53&"!n17"),"") ->  | P53: =IFERROR(INDIRECT($B53&"!o17"),"") ->  | AD53: جارى53
C54: =IFERROR(INDIRECT($B54&"!d18"),"") ->  | H54: =IFERROR(INDIRECT($B54&"!g18"),"") ->  | I54: =IFERROR(INDIRECT($B54&"!i18"),"") ->  | K54: =IFERROR(INDIRECT($B54&"!j18"),"") ->  | L54: =IFERROR(INDIRECT($B54&"!k18"),"") ->  | M54: =IFERROR(INDIRECT($B54&"!l18"),"") ->  | N54: =IFERROR(INDIRECT($B54&"!m18"),"") ->  | O54: =IFERROR(INDIRECT($B54&"!n18"),"") ->  | P54: =IFERROR(INDIRECT($B54&"!o18"),"") ->  | AD54: جارى54
C55: =IFERROR(INDIRECT($B55&"!d19"),"") ->  | H55: =IFERROR(INDIRECT($B55&"!g19"),"") ->  | I55: =IFERROR(INDIRECT($B55&"!i19"),"") ->  | K55: =IFERROR(INDIRECT($B55&"!j19"),"") ->  | L55: =IFERROR(INDIRECT($B55&"!k19"),"") ->  | M55: =IFERROR(INDIRECT($B55&"!l19"),"") ->  | N55: =IFERROR(INDIRECT($B55&"!m19"),"") ->  | O55: =IFERROR(INDIRECT($B55&"!n19"),"") ->  | P55: =IFERROR(INDIRECT($B55&"!o19"),"") ->  | AD55: جارى55
C56: =IFERROR(INDIRECT($B56&"!d20"),"") ->  | H56: =IFERROR(INDIRECT($B56&"!g20"),"") ->  | I56: =IFERROR(INDIRECT($B56&"!i20"),"") ->  | K56: =IFERROR(INDIRECT($B56&"!j20"),"") ->  | L56: =IFERROR(INDIRECT($B56&"!k20"),"") ->  | M56: =IFERROR(INDIRECT($B56&"!l20"),"") ->  | N56: =IFERROR(INDIRECT($B56&"!m20"),"") ->  | O56: =IFERROR(INDIRECT($B56&"!n20"),"") ->  | P56: =IFERROR(INDIRECT($B56&"!o120"),"") ->  | AD56: جارى56
C57: =IFERROR(INDIRECT($B57&"!d21"),"") ->  | H57: =IFERROR(INDIRECT($B57&"!g21"),"") ->  | I57: =IFERROR(INDIRECT($B57&"!i21"),"") ->  | K57: =IFERROR(INDIRECT($B57&"!j21"),"") ->  | L57: =IFERROR(INDIRECT($B57&"!k21"),"") ->  | M57: =IFERROR(INDIRECT($B57&"!l21"),"") ->  | N57: =IFERROR(INDIRECT($B57&"!m21"),"") ->  | O57: =IFERROR(INDIRECT($B57&"!n21"),"") ->  | P57: =IFERROR(INDIRECT($B57&"!o121"),"") ->  | AD57: جارى57
C58: =IFERROR(INDIRECT($B58&"!d22"),"") ->  | H58: =IFERROR(INDIRECT($B58&"!g22"),"") ->  | I58: =IFERROR(INDIRECT($B58&"!i22"),"") ->  | K58: =IFERROR(INDIRECT($B58&"!j22"),"") ->  | L58: =IFERROR(INDIRECT($B58&"!k22"),"") ->  | M58: =IFERROR(INDIRECT($B58&"!l22"),"") ->  | N58: =IFERROR(INDIRECT($B58&"!m22"),"") ->  | O58: =IFERROR(INDIRECT($B58&"!n22"),"") ->  | P58: =IFERROR(INDIRECT($B58&"!o22"),"") ->  | AD58: جارى58
C59: =IFERROR(INDIRECT($B59&"!d16"),"") ->  | H59: =IFERROR(INDIRECT($B59&"!g16"),"") ->  | I59: =IFERROR(INDIRECT($B59&"!h16"),"") ->  | O59: =IFERROR(INDIRECT($B59&"!n16"),"") ->  | AD59: جارى59
C60: =IFERROR(INDIRECT($B60&"!d17"),"") ->  | H60: =IFERROR(INDIRECT($B60&"!g17"),"") ->  | I60: =IFERROR(INDIRECT($B60&"!i17"),"") ->  | K60: =IFERROR(INDIRECT($B60&"!j17"),"") ->  | L60: =IFERROR(INDIRECT($B60&"!k17"),"") ->  | M60: =IFERROR(INDIRECT($B60&"!l17"),"") ->  | N60: =IFERROR(INDIRECT($B60&"!m17"),"") ->  | O60: =IFERROR(INDIRECT($B60&"!n17"),"") ->  | P60: =IFERROR(INDIRECT($B60&"!o17"),"") ->  | AD60: جارى60
C61: =IFERROR(INDIRECT($B61&"!d18"),"") ->  | H61: =IFERROR(INDIRECT($B61&"!g18"),"") ->  | I61: =IFERROR(INDIRECT($B61&"!i18"),"") ->  | K61: =IFERROR(INDIRECT($B61&"!j18"),"") ->  | L61: =IFERROR(INDIRECT($B61&"!k18"),"") ->  | M61: =IFERROR(INDIRECT($B61&"!l18"),"") ->  | N61: =IFERROR(INDIRECT($B61&"!m18"),"") ->  | O61: =IFERROR(INDIRECT($B61&"!n18"),"") ->  | P61: =IFERROR(INDIRECT($B61&"!o18"),"") ->  | AD61: جارى61
C62: =IFERROR(INDIRECT($B62&"!d19"),"") ->  | H62: =IFERROR(INDIRECT($B62&"!g19"),"") ->  | I62: =IFERROR(INDIRECT($B62&"!i19"),"") ->  | K62: =IFERROR(INDIRECT($B62&"!j19"),"") ->  | L62: =IFERROR(INDIRECT($B62&"!k19"),"") ->  | M62: =IFERROR(INDIRECT($B62&"!l19"),"") ->  | N62: =IFERROR(INDIRECT($B62&"!m19"),"") ->  | O62: =IFERROR(INDIRECT($B62&"!n19"),"") ->  | P62: =IFERROR(INDIRECT($B62&"!o19"),"") ->  | AD62: جارى62
C63: =IFERROR(INDIRECT($B63&"!d20"),"") ->  | H63: =IFERROR(INDIRECT($B63&"!g20"),"") ->  | I63: =IFERROR(INDIRECT($B63&"!i20"),"") ->  | K63: =IFERROR(INDIRECT($B63&"!j20"),"") ->  | L63: =IFERROR(INDIRECT($B63&"!k20"),"") ->  | M63: =IFERROR(INDIRECT($B63&"!l20"),"") ->  | N63: =IFERROR(INDIRECT($B63&"!m20"),"") ->  | O63: =IFERROR(INDIRECT($B63&"!n20"),"") ->  | P63: =IFERROR(INDIRECT($B63&"!o120"),"") ->  | AD63: جارى63
C64: =IFERROR(INDIRECT($B64&"!d21"),"") ->  | H64: =IFERROR(INDIRECT($B64&"!g21"),"") ->  | I64: =IFERROR(INDIRECT($B64&"!i21"),"") ->  | K64: =IFERROR(INDIRECT($B64&"!j21"),"") ->  | L64: =IFERROR(INDIRECT($B64&"!k21"),"") ->  | M64: =IFERROR(INDIRECT($B64&"!l21"),"") ->  | N64: =IFERROR(INDIRECT($B64&"!m21"),"") ->  | O64: =IFERROR(INDIRECT($B64&"!n21"),"") ->  | P64: =IFERROR(INDIRECT($B64&"!o121"),"") ->  | AD64: جارى64
C65: =IFERROR(INDIRECT($B65&"!d22"),"") ->  | H65: =IFERROR(INDIRECT($B65&"!g22"),"") ->  | I65: =IFERROR(INDIRECT($B65&"!i22"),"") ->  | K65: =IFERROR(INDIRECT($B65&"!j22"),"") ->  | L65: =IFERROR(INDIRECT($B65&"!k22"),"") ->  | M65: =IFERROR(INDIRECT($B65&"!l22"),"") ->  | N65: =IFERROR(INDIRECT($B65&"!m22"),"") ->  | O65: =IFERROR(INDIRECT($B65&"!n22"),"") ->  | P65: =IFERROR(INDIRECT($B65&"!o22"),"") ->  | AD65: جارى65
C66: =IFERROR(INDIRECT($B66&"!d16"),"") ->  | H66: =IFERROR(INDIRECT($B66&"!g16"),"") ->  | I66: =IFERROR(INDIRECT($B66&"!h16"),"") ->  | O66: =IFERROR(INDIRECT($B66&"!n16"),"") ->  | AD66: جارى66
C67: =IFERROR(INDIRECT($B67&"!d17"),"") ->  | H67: =IFERROR(INDIRECT($B67&"!g17"),"") ->  | I67: =IFERROR(INDIRECT($B67&"!i17"),"") ->  | K67: =IFERROR(INDIRECT($B67&"!j17"),"") ->  | L67: =IFERROR(INDIRECT($B67&"!k17"),"") ->  | M67: =IFERROR(INDIRECT($B67&"!l17"),"") ->  | N67: =IFERROR(INDIRECT($B67&"!m17"),"") ->  | O67: =IFERROR(INDIRECT($B67&"!n17"),"") ->  | P67: =IFERROR(INDIRECT($B67&"!o17"),"") ->  | AD67: جارى67
C68: =IFERROR(INDIRECT($B68&"!d18"),"") ->  | D68: =IFERROR(INDIRECT($B68&"!e10"),"") ->  | E68: =IFERROR(INDIRECT($B68&"!e7"),"") ->  | F68: =IFERROR(INDIRECT($B68&"!e12"),"") ->  | G68: =IFERROR(INDIRECT($B68&"!e13"),"") ->  | H68: =IFERROR(INDIRECT($B68&"!g18"),"") ->  | I68: =IFERROR(INDIRECT($B68&"!i18"),"") ->  | K68: =IFERROR(INDIRECT($B68&"!j18"),"") ->  | L68: =IFERROR(INDIRECT($B68&"!k18"),"") ->  | M68: =IFERROR(INDIRECT($B68&"!l18"),"") ->  | N68: =IFERROR(INDIRECT($B68&"!m18"),"") ->  | O68: =IFERROR(INDIRECT($B68&"!n18"),"") ->  | P68: =IFERROR(INDIRECT($B68&"!o18"),"") ->  | AD68: جارى68
C69: =IFERROR(INDIRECT($B69&"!d19"),"") ->  | H69: =IFERROR(INDIRECT($B69&"!g19"),"") ->  | I69: =IFERROR(INDIRECT($B69&"!i19"),"") ->  | K69: =IFERROR(INDIRECT($B69&"!j19"),"") ->  | L69: =IFERROR(INDIRECT($B69&"!k19"),"") ->  | M69: =IFERROR(INDIRECT($B69&"!l19"),"") ->  | N69: =IFERROR(INDIRECT($B69&"!m19"),"") ->  | O69: =IFERROR(INDIRECT($B69&"!n19"),"") ->  | P69: =IFERROR(INDIRECT($B69&"!o19"),"") ->  | AD69: جارى69
C70: =IFERROR(INDIRECT($B70&"!d20"),"") ->  | H70: =IFERROR(INDIRECT($B70&"!g20"),"") ->  | I70: =IFERROR(INDIRECT($B70&"!i20"),"") ->  | K70: =IFERROR(INDIRECT($B70&"!j20"),"") ->  | L70: =IFERROR(INDIRECT($B70&"!k20"),"") ->  | M70: =IFERROR(INDIRECT($B70&"!l20"),"") ->  | N70: =IFERROR(INDIRECT($B70&"!m20"),"") ->  | O70: =IFERROR(INDIRECT($B70&"!n20"),"") ->  | P70: =IFERROR(INDIRECT($B70&"!o120"),"") ->  | AD70: جارى70
C71: =IFERROR(INDIRECT($B71&"!d21"),"") ->  | H71: =IFERROR(INDIRECT($B71&"!g21"),"") ->  | I71: =IFERROR(INDIRECT($B71&"!i21"),"") ->  | K71: =IFERROR(INDIRECT($B71&"!j21"),"") ->  | L71: =IFERROR(INDIRECT($B71&"!k21"),"") ->  | M71: =IFERROR(INDIRECT($B71&"!l21"),"") ->  | N71: =IFERROR(INDIRECT($B71&"!m21"),"") ->  | O71: =IFERROR(INDIRECT($B71&"!n21"),"") ->  | P71: =IFERROR(INDIRECT($B71&"!o121"),"") ->  | AD71: جارى71
C72: =IFERROR(INDIRECT($B72&"!d22"),"") ->  | H72: =IFERROR(INDIRECT($B72&"!g22"),"") ->  | I72: =IFERROR(INDIRECT($B72&"!i22"),"") ->  | K72: =IFERROR(INDIRECT($B72&"!j22"),"") ->  | L72: =IFERROR(INDIRECT($B72&"!k22"),"") ->  | M72: =IFERROR(INDIRECT($B72&"!l22"),"") ->  | N72: =IFERROR(INDIRECT($B72&"!m22"),"") ->  | O72: =IFERROR(INDIRECT($B72&"!n22"),"") ->  | P72: =IFERROR(INDIRECT($B72&"!o22"),"") ->  | AD72: جارى72
C73: =IFERROR(INDIRECT($B73&"!d16"),"") ->  | H73: =IFERROR(INDIRECT($B73&"!g16"),"") ->  | I73: =IFERROR(INDIRECT($B73&"!h16"),"") ->  | O73: =IFERROR(INDIRECT($B73&"!n16"),"") ->  | AD73: جارى73
C74: =IFERROR(INDIRECT($B74&"!d17"),"") ->  | H74: =IFERROR(INDIRECT($B74&"!g17"),"") ->  | I74: =IFERROR(INDIRECT($B74&"!i17"),"") ->  | K74: =IFERROR(INDIRECT($B74&"!j17"),"") ->  | L74: =IFERROR(INDIRECT($B74&"!k17"),"") ->  | M74: =IFERROR(INDIRECT($B74&"!l17"),"") ->  | N74: =IFERROR(INDIRECT($B74&"!m17"),"") ->  | O74: =IFERROR(INDIRECT($B74&"!n17"),"") ->  | P74: =IFERROR(INDIRECT($B74&"!o17"),"") ->  | AD74: جارى74
C75: =IFERROR(INDIRECT($B75&"!d18"),"") ->  | H75: =IFERROR(INDIRECT($B75&"!g18"),"") ->  | I75: =IFERROR(INDIRECT($B75&"!i18"),"") ->  | K75: =IFERROR(INDIRECT($B75&"!j18"),"") ->  | L75: =IFERROR(INDIRECT($B75&"!k18"),"") ->  | M75: =IFERROR(INDIRECT($B75&"!l18"),"") ->  | N75: =IFERROR(INDIRECT($B75&"!m18"),"") ->  | O75: =IFERROR(INDIRECT($B75&"!n18"),"") ->  | P75: =IFERROR(INDIRECT($B75&"!o18"),"") ->  | AD75: جارى75
C76: =IFERROR(INDIRECT($B76&"!d19"),"") ->  | H76: =IFERROR(INDIRECT($B76&"!g19"),"") ->  | I76: =IFERROR(INDIRECT($B76&"!i19"),"") ->  | K76: =IFERROR(INDIRECT($B76&"!j19"),"") ->  | L76: =IFERROR(INDIRECT($B76&"!k19"),"") ->  | M76: =IFERROR(INDIRECT($B76&"!l19"),"") ->  | N76: =IFERROR(INDIRECT($B76&"!m19"),"") ->  | O76: =IFERROR(INDIRECT($B76&"!n19"),"") ->  | P76: =IFERROR(INDIRECT($B76&"!o19"),"") ->  | AD76: جارى76
C77: =IFERROR(INDIRECT($B77&"!d20"),"") ->  | H77: =IFERROR(INDIRECT($B77&"!g20"),"") ->  | I77: =IFERROR(INDIRECT($B77&"!i20"),"") ->  | K77: =IFERROR(INDIRECT($B77&"!j20"),"") ->  | L77: =IFERROR(INDIRECT($B77&"!k20"),"") ->  | M77: =IFERROR(INDIRECT($B77&"!l20"),"") ->  | N77: =IFERROR(INDIRECT($B77&"!m20"),"") ->  | O77: =IFERROR(INDIRECT($B77&"!n20"),"") ->  | P77: =IFERROR(INDIRECT($B77&"!o120"),"") ->  | AD77: جارى77
C78: =IFERROR(INDIRECT($B78&"!d21"),"") ->  | H78: =IFERROR(INDIRECT($B78&"!g21"),"") ->  | I78: =IFERROR(INDIRECT($B78&"!i21"),"") ->  | K78: =IFERROR(INDIRECT($B78&"!j21"),"") ->  | L78: =IFERROR(INDIRECT($B78&"!k21"),"") ->  | M78: =IFERROR(INDIRECT($B78&"!l21"),"") ->  | N78: =IFERROR(INDIRECT($B78&"!m21"),"") ->  | O78: =IFERROR(INDIRECT($B78&"!n21"),"") ->  | P78: =IFERROR(INDIRECT($B78&"!o121"),"") ->  | AD78: جارى78
C79: =IFERROR(INDIRECT($B79&"!d22"),"") ->  | H79: =IFERROR(INDIRECT($B79&"!g22"),"") ->  | I79: =IFERROR(INDIRECT($B79&"!i22"),"") ->  | K79: =IFERROR(INDIRECT($B79&"!j22"),"") ->  | L79: =IFERROR(INDIRECT($B79&"!k22"),"") ->  | M79: =IFERROR(INDIRECT($B79&"!l22"),"") ->  | N79: =IFERROR(INDIRECT($B79&"!m22"),"") ->  | O79: =IFERROR(INDIRECT($B79&"!n22"),"") ->  | P79: =IFERROR(INDIRECT($B79&"!o22"),"") ->  | AD79: جارى79
C80: =IFERROR(INDIRECT($B80&"!d16"),"") ->  | H80: =IFERROR(INDIRECT($B80&"!g16"),"") ->  | I80: =IFERROR(INDIRECT($B80&"!h16"),"") ->  | O80: =IFERROR(INDIRECT($B80&"!n16"),"") ->  | AD80: جارى80
C81: =IFERROR(INDIRECT($B81&"!d17"),"") ->  | H81: =IFERROR(INDIRECT($B81&"!g17"),"") ->  | I81: =IFERROR(INDIRECT($B81&"!i17"),"") ->  | K81: =IFERROR(INDIRECT($B81&"!j17"),"") ->  | L81: =IFERROR(INDIRECT($B81&"!k17"),"") ->  | M81: =IFERROR(INDIRECT($B81&"!l17"),"") ->  | N81: =IFERROR(INDIRECT($B81&"!m17"),"") ->  | O81: =IFERROR(INDIRECT($B81&"!n17"),"") ->  | P81: =IFERROR(INDIRECT($B81&"!o17"),"") ->  | AD81: جارى81
C82: =IFERROR(INDIRECT($B82&"!d18"),"") ->  | H82: =IFERROR(INDIRECT($B82&"!g18"),"") ->  | I82: =IFERROR(INDIRECT($B82&"!i18"),"") ->  | K82: =IFERROR(INDIRECT($B82&"!j18"),"") ->  | L82: =IFERROR(INDIRECT($B82&"!k18"),"") ->  | M82: =IFERROR(INDIRECT($B82&"!l18"),"") ->  | N82: =IFERROR(INDIRECT($B82&"!m18"),"") ->  | O82: =IFERROR(INDIRECT($B82&"!n18"),"") ->  | P82: =IFERROR(INDIRECT($B82&"!o18"),"") ->  | AD82: جارى82
C83: =IFERROR(INDIRECT($B83&"!d19"),"") ->  | H83: =IFERROR(INDIRECT($B83&"!g19"),"") ->  | I83: =IFERROR(INDIRECT($B83&"!i19"),"") ->  | K83: =IFERROR(INDIRECT($B83&"!j19"),"") ->  | L83: =IFERROR(INDIRECT($B83&"!k19"),"") ->  | M83: =IFERROR(INDIRECT($B83&"!l19"),"") ->  | N83: =IFERROR(INDIRECT($B83&"!m19"),"") ->  | O83: =IFERROR(INDIRECT($B83&"!n19"),"") ->  | P83: =IFERROR(INDIRECT($B83&"!o19"),"") ->  | AD83: جارى83
C84: =IFERROR(INDIRECT($B84&"!d20"),"") ->  | H84: =IFERROR(INDIRECT($B84&"!g20"),"") ->  | I84: =IFERROR(INDIRECT($B84&"!i20"),"") ->  | K84: =IFERROR(INDIRECT($B84&"!j20"),"") ->  | L84: =IFERROR(INDIRECT($B84&"!k20"),"") ->  | M84: =IFERROR(INDIRECT($B84&"!l20"),"") ->  | N84: =IFERROR(INDIRECT($B84&"!m20"),"") ->  | O84: =IFERROR(INDIRECT($B84&"!n20"),"") ->  | P84: =IFERROR(INDIRECT($B84&"!o120"),"") ->  | AD84: جارى84
C85: =IFERROR(INDIRECT($B85&"!d21"),"") ->  | H85: =IFERROR(INDIRECT($B85&"!g21"),"") ->  | I85: =IFERROR(INDIRECT($B85&"!i21"),"") ->  | K85: =IFERROR(INDIRECT($B85&"!j21"),"") ->  | L85: =IFERROR(INDIRECT($B85&"!k21"),"") ->  | M85: =IFERROR(INDIRECT($B85&"!l21"),"") ->  | N85: =IFERROR(INDIRECT($B85&"!m21"),"") ->  | O85: =IFERROR(INDIRECT($B85&"!n21"),"") ->  | P85: =IFERROR(INDIRECT($B85&"!o121"),"") ->  | AD85: جارى85
C86: =IFERROR(INDIRECT($B86&"!d22"),"") ->  | H86: =IFERROR(INDIRECT($B86&"!g22"),"") ->  | I86: =IFERROR(INDIRECT($B86&"!i22"),"") ->  | K86: =IFERROR(INDIRECT($B86&"!j22"),"") ->  | L86: =IFERROR(INDIRECT($B86&"!k22"),"") ->  | M86: =IFERROR(INDIRECT($B86&"!l22"),"") ->  | N86: =IFERROR(INDIRECT($B86&"!m22"),"") ->  | O86: =IFERROR(INDIRECT($B86&"!n22"),"") ->  | P86: =IFERROR(INDIRECT($B86&"!o22"),"") ->  | AD86: جارى86
C87: =IFERROR(INDIRECT($B87&"!d16"),"") ->  | H87: =IFERROR(INDIRECT($B87&"!g16"),"") ->  | I87: =IFERROR(INDIRECT($B87&"!h16"),"") ->  | O87: =IFERROR(INDIRECT($B87&"!n16"),"") ->  | AD87: جارى87
C88: =IFERROR(INDIRECT($B88&"!d17"),"") ->  | H88: =IFERROR(INDIRECT($B88&"!g17"),"") ->  | I88: =IFERROR(INDIRECT($B88&"!i17"),"") ->  | K88: =IFERROR(INDIRECT($B88&"!j17"),"") ->  | L88: =IFERROR(INDIRECT($B88&"!k17"),"") ->  | M88: =IFERROR(INDIRECT($B88&"!l17"),"") ->  | N88: =IFERROR(INDIRECT($B88&"!m17"),"") ->  | O88: =IFERROR(INDIRECT($B88&"!n17"),"") ->  | P88: =IFERROR(INDIRECT($B88&"!o17"),"") ->  | AD88: جارى88
C89: =IFERROR(INDIRECT($B89&"!d18"),"") ->  | H89: =IFERROR(INDIRECT($B89&"!g18"),"") ->  | I89: =IFERROR(INDIRECT($B89&"!i18"),"") ->  | K89: =IFERROR(INDIRECT($B89&"!j18"),"") ->  | L89: =IFERROR(INDIRECT($B89&"!k18"),"") ->  | M89: =IFERROR(INDIRECT($B89&"!l18"),"") ->  | N89: =IFERROR(INDIRECT($B89&"!m18"),"") ->  | O89: =IFERROR(INDIRECT($B89&"!n18"),"") ->  | P89: =IFERROR(INDIRECT($B89&"!o18"),"") ->  | AD89: جارى89
C90: =IFERROR(INDIRECT($B90&"!d19"),"") ->  | H90: =IFERROR(INDIRECT($B90&"!g19"),"") ->  | I90: =IFERROR(INDIRECT($B90&"!i19"),"") ->  | K90: =IFERROR(INDIRECT($B90&"!j19"),"") ->  | L90: =IFERROR(INDIRECT($B90&"!k19"),"") ->  | M90: =IFERROR(INDIRECT($B90&"!l19"),"") ->  | N90: =IFERROR(INDIRECT($B90&"!m19"),"") ->  | O90: =IFERROR(INDIRECT($B90&"!n19"),"") ->  | P90: =IFERROR(INDIRECT($B90&"!o19"),"") ->  | AD90: جارى90
C91: =IFERROR(INDIRECT($B91&"!d20"),"") ->  | H91: =IFERROR(INDIRECT($B91&"!g20"),"") ->  | I91: =IFERROR(INDIRECT($B91&"!i20"),"") ->  | K91: =IFERROR(INDIRECT($B91&"!j20"),"") ->  | L91: =IFERROR(INDIRECT($B91&"!k20"),"") ->  | M91: =IFERROR(INDIRECT($B91&"!l20"),"") ->  | N91: =IFERROR(INDIRECT($B91&"!m20"),"") ->  | O91: =IFERROR(INDIRECT($B91&"!n20"),"") ->  | P91: =IFERROR(INDIRECT($B91&"!o120"),"") ->  | AD91: جارى91
C92: =IFERROR(INDIRECT($B92&"!d21"),"") ->  | H92: =IFERROR(INDIRECT($B92&"!g21"),"") ->  | I92: =IFERROR(INDIRECT($B92&"!i21"),"") ->  | K92: =IFERROR(INDIRECT($B92&"!j21"),"") ->  | L92: =IFERROR(INDIRECT($B92&"!k21"),"") ->  | M92: =IFERROR(INDIRECT($B92&"!l21"),"") ->  | N92: =IFERROR(INDIRECT($B92&"!m21"),"") ->  | O92: =IFERROR(INDIRECT($B92&"!n21"),"") ->  | P92: =IFERROR(INDIRECT($B92&"!o121"),"") ->  | AD92: جارى92
C93: =IFERROR(INDIRECT($B93&"!d22"),"") ->  | H93: =IFERROR(INDIRECT($B93&"!g22"),"") ->  | I93: =IFERROR(INDIRECT($B93&"!i22"),"") ->  | K93: =IFERROR(INDIRECT($B93&"!j22"),"") ->  | L93: =IFERROR(INDIRECT($B93&"!k22"),"") ->  | M93: =IFERROR(INDIRECT($B93&"!l22"),"") ->  | N93: =IFERROR(INDIRECT($B93&"!m22"),"") ->  | O93: =IFERROR(INDIRECT($B93&"!n22"),"") ->  | P93: =IFERROR(INDIRECT($B93&"!o22"),"") ->  | AD93: جارى93
C94: =IFERROR(INDIRECT($B94&"!d16"),"") ->  | H94: =IFERROR(INDIRECT($B94&"!g16"),"") ->  | I94: =IFERROR(INDIRECT($B94&"!h16"),"") ->  | J94: =IFERROR(INDIRECT($B94&"!i16"),"") ->  | K94: =IFERROR(INDIRECT($B94&"!j16"),"") ->  | L94: =IFERROR(INDIRECT($B94&"!k16"),"") ->  | M94: =IFERROR(INDIRECT($B94&"!l16"),"") ->  | N94: =IFERROR(INDIRECT($B94&"!m16"),"") ->  | O94: =IFERROR(INDIRECT($B94&"!n16"),"") ->  | P94: =IFERROR(INDIRECT($B94&"!o16"),"") ->  | AD94: جارى94
C95: =IFERROR(INDIRECT($B95&"!d17"),"") ->  | H95: =IFERROR(INDIRECT($B95&"!g17"),"") ->  | I95: =IFERROR(INDIRECT($B95&"!i17"),"") ->  | K95: =IFERROR(INDIRECT($B95&"!j17"),"") ->  | L95: =IFERROR(INDIRECT($B95&"!k17"),"") ->  | M95: =IFERROR(INDIRECT($B95&"!l17"),"") ->  | N95: =IFERROR(INDIRECT($B95&"!m17"),"") ->  | O95: =IFERROR(INDIRECT($B95&"!n17"),"") ->  | P95: =IFERROR(INDIRECT($B95&"!o17"),"") ->  | AD95: جارى95
C96: =IFERROR(INDIRECT($B96&"!d18"),"") ->  | H96: =IFERROR(INDIRECT($B96&"!g18"),"") ->  | I96: =IFERROR(INDIRECT($B96&"!i18"),"") ->  | K96: =IFERROR(INDIRECT($B96&"!j18"),"") ->  | L96: =IFERROR(INDIRECT($B96&"!k18"),"") ->  | M96: =IFERROR(INDIRECT($B96&"!l18"),"") ->  | N96: =IFERROR(INDIRECT($B96&"!m18"),"") ->  | O96: =IFERROR(INDIRECT($B96&"!n18"),"") ->  | P96: =IFERROR(INDIRECT($B96&"!o18"),"") ->  | AD96: جارى96
C97: =IFERROR(INDIRECT($B97&"!d19"),"") ->  | H97: =IFERROR(INDIRECT($B97&"!g19"),"") ->  | I97: =IFERROR(INDIRECT($B97&"!i19"),"") ->  | K97: =IFERROR(INDIRECT($B97&"!j19"),"") ->  | L97: =IFERROR(INDIRECT($B97&"!k19"),"") ->  | M97: =IFERROR(INDIRECT($B97&"!l19"),"") ->  | N97: =IFERROR(INDIRECT($B97&"!m19"),"") ->  | O97: =IFERROR(INDIRECT($B97&"!n19"),"") ->  | P97: =IFERROR(INDIRECT($B97&"!o19"),"") ->  | AD97: جارى97
C98: =IFERROR(INDIRECT($B98&"!d20"),"") ->  | H98: =IFERROR(INDIRECT($B98&"!g20"),"") ->  | I98: =IFERROR(INDIRECT($B98&"!i20"),"") ->  | K98: =IFERROR(INDIRECT($B98&"!j20"),"") ->  | L98: =IFERROR(INDIRECT($B98&"!k20"),"") ->  | M98: =IFERROR(INDIRECT($B98&"!l20"),"") ->  | N98: =IFERROR(INDIRECT($B98&"!m20"),"") ->  | O98: =IFERROR(INDIRECT($B98&"!n20"),"") ->  | P98: =IFERROR(INDIRECT($B98&"!o120"),"") ->  | AD98: جارى98
C99: =IFERROR(INDIRECT($B99&"!d21"),"") ->  | H99: =IFERROR(INDIRECT($B99&"!g21"),"") ->  | I99: =IFERROR(INDIRECT($B99&"!i21"),"") ->  | K99: =IFERROR(INDIRECT($B99&"!j21"),"") ->  | L99: =IFERROR(INDIRECT($B99&"!k21"),"") ->  | M99: =IFERROR(INDIRECT($B99&"!l21"),"") ->  | N99: =IFERROR(INDIRECT($B99&"!m21"),"") ->  | O99: =IFERROR(INDIRECT($B99&"!n21"),"") ->  | P99: =IFERROR(INDIRECT($B99&"!o121"),"") ->  | AD99: جارى99
C100: =IFERROR(INDIRECT($B100&"!d22"),"") ->  | H100: =IFERROR(INDIRECT($B100&"!g22"),"") ->  | I100: =IFERROR(INDIRECT($B100&"!i22"),"") ->  | K100: =IFERROR(INDIRECT($B100&"!j22"),"") ->  | L100: =IFERROR(INDIRECT($B100&"!k22"),"") ->  | M100: =IFERROR(INDIRECT($B100&"!l22"),"") ->  | N100: =IFERROR(INDIRECT($B100&"!m22"),"") ->  | O100: =IFERROR(INDIRECT($B100&"!n22"),"") ->  | P100: =IFERROR(INDIRECT($B100&"!o22"),"") ->  | AD100: جارى100
A101: 1 | C101: =IFERROR(INDIRECT($B101&"!d16"),"") ->  | H101: =IFERROR(INDIRECT($B101&"!g16"),"") ->  | I101: =IFERROR(INDIRECT($B101&"!h16"),"") ->  | O101: =IFERROR(INDIRECT($B101&"!n16"),"") ->  | AD101: جارى101
A102: 1 | C102: =IFERROR(INDIRECT($B102&"!d17"),"") ->  | H102: =IFERROR(INDIRECT($B102&"!g17"),"") ->  | I102: =IFERROR(INDIRECT($B102&"!i17"),"") ->  | K102: =IFERROR(INDIRECT($B102&"!j17"),"") ->  | L102: =IFERROR(INDIRECT($B102&"!k17"),"") ->  | M102: =IFERROR(INDIRECT($B102&"!l17"),"") ->  | N102: =IFERROR(INDIRECT($B102&"!m17"),"") ->  | O102: =IFERROR(INDIRECT($B102&"!n17"),"") ->  | P102: =IFERROR(INDIRECT($B102&"!o17"),"") ->  | AD102: جارى102
A103: 1 | C103: =IFERROR(INDIRECT($B103&"!d18"),"") ->  | H103: =IFERROR(INDIRECT($B103&"!g18"),"") ->  | I103: =IFERROR(INDIRECT($B103&"!i18"),"") ->  | K103: =IFERROR(INDIRECT($B103&"!j18"),"") ->  | L103: =IFERROR(INDIRECT($B103&"!k18"),"") ->  | M103: =IFERROR(INDIRECT($B103&"!l18"),"") ->  | N103: =IFERROR(INDIRECT($B103&"!m18"),"") ->  | O103: =IFERROR(INDIRECT($B103&"!n18"),"") ->  | P103: =IFERROR(INDIRECT($B103&"!o18"),"") ->  | AD103: جارى103
A104: 1 | C104: =IFERROR(INDIRECT($B104&"!d19"),"") ->  | H104: =IFERROR(INDIRECT($B104&"!g19"),"") ->  | I104: =IFERROR(INDIRECT($B104&"!i19"),"") ->  | K104: =IFERROR(INDIRECT($B104&"!j19"),"") ->  | L104: =IFERROR(INDIRECT($B104&"!k19"),"") ->  | M104: =IFERROR(INDIRECT($B104&"!l19"),"") ->  | N104: =IFERROR(INDIRECT($B104&"!m19"),"") ->  | O104: =IFERROR(INDIRECT($B104&"!n19"),"") ->  | P104: =IFERROR(INDIRECT($B104&"!o19"),"") ->  | AD104: جارى104
A105: 1 | C105: =IFERROR(INDIRECT($B105&"!d20"),"") ->  | H105: =IFERROR(INDIRECT($B105&"!g20"),"") ->  | I105: =IFERROR(INDIRECT($B105&"!i20"),"") ->  | K105: =IFERROR(INDIRECT($B105&"!j20"),"") ->  | L105: =IFERROR(INDIRECT($B105&"!k20"),"") ->  | M105: =IFERROR(INDIRECT($B105&"!l20"),"") ->  | N105: =IFERROR(INDIRECT($B105&"!m20"),"") ->  | O105: =IFERROR(INDIRECT($B105&"!n20"),"") ->  | P105: =IFERROR(INDIRECT($B105&"!o120"),"") ->  | AD105: جارى105
A106: 1 | C106: =IFERROR(INDIRECT($B106&"!d21"),"") ->  | H106: =IFERROR(INDIRECT($B106&"!g21"),"") ->  | I106: =IFERROR(INDIRECT($B106&"!i21"),"") ->  | K106: =IFERROR(INDIRECT($B106&"!j21"),"") ->  | L106: =IFERROR(INDIRECT($B106&"!k21"),"") ->  | M106: =IFERROR(INDIRECT($B106&"!l21"),"") ->  | N106: =IFERROR(INDIRECT($B106&"!m21"),"") ->  | O106: =IFERROR(INDIRECT($B106&"!n21"),"") ->  | P106: =IFERROR(INDIRECT($B106&"!o121"),"") ->  | AD106: جارى106
A107: 1 | C107: =IFERROR(INDIRECT($B107&"!d22"),"") ->  | H107: =IFERROR(INDIRECT($B107&"!g22"),"") ->  | I107: =IFERROR(INDIRECT($B107&"!i22"),"") ->  | K107: =IFERROR(INDIRECT($B107&"!j22"),"") ->  | L107: =IFERROR(INDIRECT($B107&"!k22"),"") ->  | M107: =IFERROR(INDIRECT($B107&"!l22"),"") ->  | N107: =IFERROR(INDIRECT($B107&"!m22"),"") ->  | O107: =IFERROR(INDIRECT($B107&"!n22"),"") ->  | P107: =IFERROR(INDIRECT($B107&"!o22"),"") ->  | AD107: جارى107
A108: 1 | C108: =IFERROR(INDIRECT($B108&"!d16"),"") ->  | H108: =IFERROR(INDIRECT($B108&"!g16"),"") ->  | I108: =IFERROR(INDIRECT($B108&"!h16"),"") ->  | O108: =IFERROR(INDIRECT($B108&"!n16"),"") ->  | AD108: جارى108
A109: 1 | C109: =IFERROR(INDIRECT($B109&"!d17"),"") ->  | H109: =IFERROR(INDIRECT($B109&"!g17"),"") ->  | I109: =IFERROR(INDIRECT($B109&"!i17"),"") ->  | K109: =IFERROR(INDIRECT($B109&"!j17"),"") ->  | L109: =IFERROR(INDIRECT($B109&"!k17"),"") ->  | M109: =IFERROR(INDIRECT($B109&"!l17"),"") ->  | N109: =IFERROR(INDIRECT($B109&"!m17"),"") ->  | O109: =IFERROR(INDIRECT($B109&"!n17"),"") ->  | P109: =IFERROR(INDIRECT($B109&"!o17"),"") ->  | AD109: جارى109
A110: 1 | C110: =IFERROR(INDIRECT($B110&"!d18"),"") ->  | H110: =IFERROR(INDIRECT($B110&"!g18"),"") ->  | I110: =IFERROR(INDIRECT($B110&"!i18"),"") ->  | K110: =IFERROR(INDIRECT($B110&"!j18"),"") ->  | L110: =IFERROR(INDIRECT($B110&"!k18"),"") ->  | M110: =IFERROR(INDIRECT($B110&"!l18"),"") ->  | N110: =IFERROR(INDIRECT($B110&"!m18"),"") ->  | O110: =IFERROR(INDIRECT($B110&"!n18"),"") ->  | P110: =IFERROR(INDIRECT($B110&"!o18"),"") ->  | AD110: جارى110
A111: 1 | C111: =IFERROR(INDIRECT($B111&"!d19"),"") ->  | H111: =IFERROR(INDIRECT($B111&"!g19"),"") ->  | I111: =IFERROR(INDIRECT($B111&"!i19"),"") ->  | K111: =IFERROR(INDIRECT($B111&"!j19"),"") ->  | L111: =IFERROR(INDIRECT($B111&"!k19"),"") ->  | M111: =IFERROR(INDIRECT($B111&"!l19"),"") ->  | N111: =IFERROR(INDIRECT($B111&"!m19"),"") ->  | O111: =IFERROR(INDIRECT($B111&"!n19"),"") ->  | P111: =IFERROR(INDIRECT($B111&"!o19"),"") ->  | AD111: جارى111
A112: 1 | C112: =IFERROR(INDIRECT($B112&"!d20"),"") ->  | H112: =IFERROR(INDIRECT($B112&"!g20"),"") ->  | I112: =IFERROR(INDIRECT($B112&"!i20"),"") ->  | K112: =IFERROR(INDIRECT($B112&"!j20"),"") ->  | L112: =IFERROR(INDIRECT($B112&"!k20"),"") ->  | M112: =IFERROR(INDIRECT($B112&"!l20"),"") ->  | N112: =IFERROR(INDIRECT($B112&"!m20"),"") ->  | O112: =IFERROR(INDIRECT($B112&"!n20"),"") ->  | P112: =IFERROR(INDIRECT($B112&"!o120"),"") ->  | AD112: جارى112
A113: 1 | C113: =IFERROR(INDIRECT($B113&"!d21"),"") ->  | H113: =IFERROR(INDIRECT($B113&"!g21"),"") ->  | I113: =IFERROR(INDIRECT($B113&"!i21"),"") ->  | K113: =IFERROR(INDIRECT($B113&"!j21"),"") ->  | L113: =IFERROR(INDIRECT($B113&"!k21"),"") ->  | M113: =IFERROR(INDIRECT($B113&"!l21"),"") ->  | N113: =IFERROR(INDIRECT($B113&"!m21"),"") ->  | O113: =IFERROR(INDIRECT($B113&"!n21"),"") ->  | P113: =IFERROR(INDIRECT($B113&"!o121"),"") ->  | AD113: جارى113
A114: 1 | C114: =IFERROR(INDIRECT($B114&"!d22"),"") ->  | H114: =IFERROR(INDIRECT($B114&"!g22"),"") ->  | I114: =IFERROR(INDIRECT($B114&"!i22"),"") ->  | K114: =IFERROR(INDIRECT($B114&"!j22"),"") ->  | L114: =IFERROR(INDIRECT($B114&"!k22"),"") ->  | M114: =IFERROR(INDIRECT($B114&"!l22"),"") ->  | N114: =IFERROR(INDIRECT($B114&"!m22"),"") ->  | O114: =IFERROR(INDIRECT($B114&"!n22"),"") ->  | P114: =IFERROR(INDIRECT($B114&"!o22"),"") ->  | AD114: جارى114
A115: 1 | C115: =IFERROR(INDIRECT($B115&"!d16"),"") ->  | H115: =IFERROR(INDIRECT($B115&"!g16"),"") ->  | I115: =IFERROR(INDIRECT($B115&"!h16"),"") ->  | O115: =IFERROR(INDIRECT($B115&"!n16"),"") ->  | AD115: جارى115
A116: 1 | C116: =IFERROR(INDIRECT($B116&"!d17"),"") ->  | H116: =IFERROR(INDIRECT($B116&"!g17"),"") ->  | I116: =IFERROR(INDIRECT($B116&"!i17"),"") ->  | K116: =IFERROR(INDIRECT($B116&"!j17"),"") ->  | L116: =IFERROR(INDIRECT($B116&"!k17"),"") ->  | M116: =IFERROR(INDIRECT($B116&"!l17"),"") ->  | N116: =IFERROR(INDIRECT($B116&"!m17"),"") ->  | O116: =IFERROR(INDIRECT($B116&"!n17"),"") ->  | P116: =IFERROR(INDIRECT($B116&"!o17"),"") ->  | AD116: جارى116
A117: 1 | C117: =IFERROR(INDIRECT($B117&"!d18"),"") ->  | H117: =IFERROR(INDIRECT($B117&"!g18"),"") ->  | I117: =IFERROR(INDIRECT($B117&"!i18"),"") ->  | K117: =IFERROR(INDIRECT($B117&"!j18"),"") ->  | L117: =IFERROR(INDIRECT($B117&"!k18"),"") ->  | M117: =IFERROR(INDIRECT($B117&"!l18"),"") ->  | N117: =IFERROR(INDIRECT($B117&"!m18"),"") ->  | O117: =IFERROR(INDIRECT($B117&"!n18"),"") ->  | P117: =IFERROR(INDIRECT($B117&"!o18"),"") ->  | AD117: جارى117
A118: 1 | C118: =IFERROR(INDIRECT($B118&"!d19"),"") ->  | H118: =IFERROR(INDIRECT($B118&"!g19"),"") ->  | I118: =IFERROR(INDIRECT($B118&"!i19"),"") ->  | K118: =IFERROR(INDIRECT($B118&"!j19"),"") ->  | L118: =IFERROR(INDIRECT($B118&"!k19"),"") ->  | M118: =IFERROR(INDIRECT($B118&"!l19"),"") ->  | N118: =IFERROR(INDIRECT($B118&"!m19"),"") ->  | O118: =IFERROR(INDIRECT($B118&"!n19"),"") ->  | P118: =IFERROR(INDIRECT($B118&"!o19"),"") ->  | AD118: جارى118
A119: 1 | C119: =IFERROR(INDIRECT($B119&"!d20"),"") ->  | H119: =IFERROR(INDIRECT($B119&"!g20"),"") ->  | I119: =IFERROR(INDIRECT($B119&"!i20"),"") ->  | K119: =IFERROR(INDIRECT($B119&"!j20"),"") ->  | L119: =IFERROR(INDIRECT($B119&"!k20"),"") ->  | M119: =IFERROR(INDIRECT($B119&"!l20"),"") ->  | N119: =IFERROR(INDIRECT($B119&"!m20"),"") ->  | O119: =IFERROR(INDIRECT($B119&"!n20"),"") ->  | P119: =IFERROR(INDIRECT($B119&"!o120"),"") ->  | AD119: جارى119
A120: 1 | C120: =IFERROR(INDIRECT($B120&"!d21"),"") ->  | H120: =IFERROR(INDIRECT($B120&"!g21"),"") ->  | I120: =IFERROR(INDIRECT($B120&"!i21"),"") ->  | K120: =IFERROR(INDIRECT($B120&"!j21"),"") ->  | L120: =IFERROR(INDIRECT($B120&"!k21"),"") ->  | M120: =IFERROR(INDIRECT($B120&"!l21"),"") ->  | N120: =IFERROR(INDIRECT($B120&"!m21"),"") ->  | O120: =IFERROR(INDIRECT($B120&"!n21"),"") ->  | P120: =IFERROR(INDIRECT($B120&"!o121"),"") ->  | AD120: جارى120
A121: 1 | C121: =IFERROR(INDIRECT($B121&"!d22"),"") ->  | H121: =IFERROR(INDIRECT($B121&"!g22"),"") ->  | I121: =IFERROR(INDIRECT($B121&"!i22"),"") ->  | K121: =IFERROR(INDIRECT($B121&"!j22"),"") ->  | L121: =IFERROR(INDIRECT($B121&"!k22"),"") ->  | M121: =IFERROR(INDIRECT($B121&"!l22"),"") ->  | N121: =IFERROR(INDIRECT($B121&"!m22"),"") ->  | O121: =IFERROR(INDIRECT($B121&"!n22"),"") ->  | P121: =IFERROR(INDIRECT($B121&"!o22"),"") ->  | AD121: جارى121
A122: 1 | C122: =IFERROR(INDIRECT($B122&"!d16"),"") ->  | H122: =IFERROR(INDIRECT($B122&"!g16"),"") ->  | I122: =IFERROR(INDIRECT($B122&"!h16"),"") ->  | O122: =IFERROR(INDIRECT($B122&"!n16"),"") ->  | AD122: جارى122
A123: 1 | C123: =IFERROR(INDIRECT($B123&"!d17"),"") ->  | H123: =IFERROR(INDIRECT($B123&"!g17"),"") ->  | I123: =IFERROR(INDIRECT($B123&"!i17"),"") ->  | K123: =IFERROR(INDIRECT($B123&"!j17"),"") ->  | L123: =IFERROR(INDIRECT($B123&"!k17"),"") ->  | M123: =IFERROR(INDIRECT($B123&"!l17"),"") ->  | N123: =IFERROR(INDIRECT($B123&"!m17"),"") ->  | O123: =IFERROR(INDIRECT($B123&"!n17"),"") ->  | P123: =IFERROR(INDIRECT($B123&"!o17"),"") ->  | AD123: جارى123
A124: 1 | C124: =IFERROR(INDIRECT($B124&"!d18"),"") ->  | H124: =IFERROR(INDIRECT($B124&"!g18"),"") ->  | I124: =IFERROR(INDIRECT($B124&"!i18"),"") ->  | K124: =IFERROR(INDIRECT($B124&"!j18"),"") ->  | L124: =IFERROR(INDIRECT($B124&"!k18"),"") ->  | M124: =IFERROR(INDIRECT($B124&"!l18"),"") ->  | N124: =IFERROR(INDIRECT($B124&"!m18"),"") ->  | O124: =IFERROR(INDIRECT($B124&"!n18"),"") ->  | P124: =IFERROR(INDIRECT($B124&"!o18"),"") ->  | AD124: جارى124
A125: 1 | C125: =IFERROR(INDIRECT($B125&"!d19"),"") ->  | H125: =IFERROR(INDIRECT($B125&"!g19"),"") ->  | I125: =IFERROR(INDIRECT($B125&"!i19"),"") ->  | K125: =IFERROR(INDIRECT($B125&"!j19"),"") ->  | L125: =IFERROR(INDIRECT($B125&"!k19"),"") ->  | M125: =IFERROR(INDIRECT($B125&"!l19"),"") ->  | N125: =IFERROR(INDIRECT($B125&"!m19"),"") ->  | O125: =IFERROR(INDIRECT($B125&"!n19"),"") ->  | P125: =IFERROR(INDIRECT($B125&"!o19"),"") ->  | AD125: جارى125
A126: 1 | C126: =IFERROR(INDIRECT($B126&"!d20"),"") ->  | H126: =IFERROR(INDIRECT($B126&"!g20"),"") ->  | I126: =IFERROR(INDIRECT($B126&"!i20"),"") ->  | K126: =IFERROR(INDIRECT($B126&"!j20"),"") ->  | L126: =IFERROR(INDIRECT($B126&"!k20"),"") ->  | M126: =IFERROR(INDIRECT($B126&"!l20"),"") ->  | N126: =IFERROR(INDIRECT($B126&"!m20"),"") ->  | O126: =IFERROR(INDIRECT($B126&"!n20"),"") ->  | P126: =IFERROR(INDIRECT($B126&"!o120"),"") ->  | AD126: جارى126
A127: 1 | C127: =IFERROR(INDIRECT($B127&"!d21"),"") ->  | H127: =IFERROR(INDIRECT($B127&"!g21"),"") ->  | I127: =IFERROR(INDIRECT($B127&"!i21"),"") ->  | K127: =IFERROR(INDIRECT($B127&"!j21"),"") ->  | L127: =IFERROR(INDIRECT($B127&"!k21"),"") ->  | M127: =IFERROR(INDIRECT($B127&"!l21"),"") ->  | N127: =IFERROR(INDIRECT($B127&"!m21"),"") ->  | O127: =IFERROR(INDIRECT($B127&"!n21"),"") ->  | P127: =IFERROR(INDIRECT($B127&"!o121"),"") ->  | AD127: جارى127
A128: 1 | C128: =IFERROR(INDIRECT($B128&"!d22"),"") ->  | H128: =IFERROR(INDIRECT($B128&"!g22"),"") ->  | I128: =IFERROR(INDIRECT($B128&"!i22"),"") ->  | K128: =IFERROR(INDIRECT($B128&"!j22"),"") ->  | L128: =IFERROR(INDIRECT($B128&"!k22"),"") ->  | M128: =IFERROR(INDIRECT($B128&"!l22"),"") ->  | N128: =IFERROR(INDIRECT($B128&"!m22"),"") ->  | O128: =IFERROR(INDIRECT($B128&"!n22"),"") ->  | P128: =IFERROR(INDIRECT($B128&"!o22"),"") ->  | AD128: جارى128
A129: 1 | C129: =IFERROR(INDIRECT($B129&"!d16"),"") ->  | H129: =IFERROR(INDIRECT($B129&"!g16"),"") ->  | I129: =IFERROR(INDIRECT($B129&"!h16"),"") ->  | O129: =IFERROR(INDIRECT($B129&"!n16"),"") ->  | AD129: جارى129
A130: 1 | C130: =IFERROR(INDIRECT($B130&"!d17"),"") ->  | H130: =IFERROR(INDIRECT($B130&"!g17"),"") ->  | I130: =IFERROR(INDIRECT($B130&"!i17"),"") ->  | K130: =IFERROR(INDIRECT($B130&"!j17"),"") ->  | L130: =IFERROR(INDIRECT($B130&"!k17"),"") ->  | M130: =IFERROR(INDIRECT($B130&"!l17"),"") ->  | N130: =IFERROR(INDIRECT($B130&"!m17"),"") ->  | O130: =IFERROR(INDIRECT($B130&"!n17"),"") ->  | P130: =IFERROR(INDIRECT($B130&"!o17"),"") ->  | AD130: جارى130
A131: 1 | C131: =IFERROR(INDIRECT($B131&"!d18"),"") ->  | H131: =IFERROR(INDIRECT($B131&"!g18"),"") ->  | I131: =IFERROR(INDIRECT($B131&"!i18"),"") ->  | K131: =IFERROR(INDIRECT($B131&"!j18"),"") ->  | L131: =IFERROR(INDIRECT($B131&"!k18"),"") ->  | M131: =IFERROR(INDIRECT($B131&"!l18"),"") ->  | N131: =IFERROR(INDIRECT($B131&"!m18"),"") ->  | O131: =IFERROR(INDIRECT($B131&"!n18"),"") ->  | P131: =IFERROR(INDIRECT($B131&"!o18"),"") ->  | AD131: جارى131
A132: 1 | C132: =IFERROR(INDIRECT($B132&"!d19"),"") ->  | D132: =IFERROR(INDIRECT($B132&"!e10"),"") ->  | E132: =IFERROR(INDIRECT($B132&"!e7"),"") ->  | F132: =IFERROR(INDIRECT($B132&"!e12"),"") ->  | G132: =IFERROR(INDIRECT($B132&"!e13"),"") ->  | H132: =IFERROR(INDIRECT($B132&"!g19"),"") ->  | I132: =IFERROR(INDIRECT($B132&"!i19"),"") ->  | K132: =IFERROR(INDIRECT($B132&"!j19"),"") ->  | L132: =IFERROR(INDIRECT($B132&"!k19"),"") ->  | M132: =IFERROR(INDIRECT($B132&"!l19"),"") ->  | N132: =IFERROR(INDIRECT($B132&"!m19"),"") ->  | O132: =IFERROR(INDIRECT($B132&"!n19"),"") ->  | P132: =IFERROR(INDIRECT($B132&"!o19"),"") ->  | AD132: جارى132
A133: 1 | C133: =IFERROR(INDIRECT($B133&"!d20"),"") ->  | H133: =IFERROR(INDIRECT($B133&"!g20"),"") ->  | I133: =IFERROR(INDIRECT($B133&"!i20"),"") ->  | K133: =IFERROR(INDIRECT($B133&"!j20"),"") ->  | L133: =IFERROR(INDIRECT($B133&"!k20"),"") ->  | M133: =IFERROR(INDIRECT($B133&"!l20"),"") ->  | N133: =IFERROR(INDIRECT($B133&"!m20"),"") ->  | O133: =IFERROR(INDIRECT($B133&"!n20"),"") ->  | P133: =IFERROR(INDIRECT($B133&"!o120"),"") ->  | AD133: جارى133
A134: 1 | C134: =IFERROR(INDIRECT($B134&"!d21"),"") ->  | H134: =IFERROR(INDIRECT($B134&"!g21"),"") ->  | I134: =IFERROR(INDIRECT($B134&"!i21"),"") ->  | K134: =IFERROR(INDIRECT($B134&"!j21"),"") ->  | L134: =IFERROR(INDIRECT($B134&"!k21"),"") ->  | M134: =IFERROR(INDIRECT($B134&"!l21"),"") ->  | N134: =IFERROR(INDIRECT($B134&"!m21"),"") ->  | O134: =IFERROR(INDIRECT($B134&"!n21"),"") ->  | P134: =IFERROR(INDIRECT($B134&"!o121"),"") ->  | AD134: جارى134
A135: 1 | C135: =IFERROR(INDIRECT($B135&"!d22"),"") ->  | H135: =IFERROR(INDIRECT($B135&"!g22"),"") ->  | I135: =IFERROR(INDIRECT($B135&"!i22"),"") ->  | K135: =IFERROR(INDIRECT($B135&"!j22"),"") ->  | L135: =IFERROR(INDIRECT($B135&"!k22"),"") ->  | M135: =IFERROR(INDIRECT($B135&"!l22"),"") ->  | N135: =IFERROR(INDIRECT($B135&"!m22"),"") ->  | O135: =IFERROR(INDIRECT($B135&"!n22"),"") ->  | P135: =IFERROR(INDIRECT($B135&"!o22"),"") ->  | AD135: جارى135
A136: 1 | C136: =IFERROR(INDIRECT($B136&"!d16"),"") ->  | H136: =IFERROR(INDIRECT($B136&"!g16"),"") ->  | I136: =IFERROR(INDIRECT($B136&"!h16"),"") ->  | O136: =IFERROR(INDIRECT($B136&"!n16"),"") ->  | AD136: جارى136
A137: 1 | C137: =IFERROR(INDIRECT($B137&"!d17"),"") ->  | H137: =IFERROR(INDIRECT($B137&"!g17"),"") ->  | I137: =IFERROR(INDIRECT($B137&"!i17"),"") ->  | K137: =IFERROR(INDIRECT($B137&"!j17"),"") ->  | L137: =IFERROR(INDIRECT($B137&"!k17"),"") ->  | M137: =IFERROR(INDIRECT($B137&"!l17"),"") ->  | N137: =IFERROR(INDIRECT($B137&"!m17"),"") ->  | O137: =IFERROR(INDIRECT($B137&"!n17"),"") ->  | P137: =IFERROR(INDIRECT($B137&"!o17"),"") ->  | AD137: جارى137
A138: 1 | C138: =IFERROR(INDIRECT($B138&"!d18"),"") ->  | H138: =IFERROR(INDIRECT($B138&"!g18"),"") ->  | I138: =IFERROR(INDIRECT($B138&"!i18"),"") ->  | K138: =IFERROR(INDIRECT($B138&"!j18"),"") ->  | L138: =IFERROR(INDIRECT($B138&"!k18"),"") ->  | M138: =IFERROR(INDIRECT($B138&"!l18"),"") ->  | N138: =IFERROR(INDIRECT($B138&"!m18"),"") ->  | O138: =IFERROR(INDIRECT($B138&"!n18"),"") ->  | P138: =IFERROR(INDIRECT($B138&"!o18"),"") ->  | AD138: جارى138
A139: 1 | C139: =IFERROR(INDIRECT($B139&"!d19"),"") ->  | H139: =IFERROR(INDIRECT($B139&"!g19"),"") ->  | I139: =IFERROR(INDIRECT($B139&"!i19"),"") ->  | K139: =IFERROR(INDIRECT($B139&"!j19"),"") ->  | L139: =IFERROR(INDIRECT($B139&"!k19"),"") ->  | M139: =IFERROR(INDIRECT($B139&"!l19"),"") ->  | N139: =IFERROR(INDIRECT($B139&"!m19"),"") ->  | O139: =IFERROR(INDIRECT($B139&"!n19"),"") ->  | P139: =IFERROR(INDIRECT($B139&"!o19"),"") ->  | AD139: جارى139
A140: 1 | C140: =IFERROR(INDIRECT($B140&"!d20"),"") ->  | H140: =IFERROR(INDIRECT($B140&"!g20"),"") ->  | I140: =IFERROR(INDIRECT($B140&"!i20"),"") ->  | K140: =IFERROR(INDIRECT($B140&"!j20"),"") ->  | L140: =IFERROR(INDIRECT($B140&"!k20"),"") ->  | M140: =IFERROR(INDIRECT($B140&"!l20"),"") ->  | N140: =IFERROR(INDIRECT($B140&"!m20"),"") ->  | O140: =IFERROR(INDIRECT($B140&"!n20"),"") ->  | P140: =IFERROR(INDIRECT($B140&"!o120"),"") ->  | AD140: جارى140
A141: 1 | C141: =IFERROR(INDIRECT($B141&"!d21"),"") ->  | H141: =IFERROR(INDIRECT($B141&"!g21"),"") ->  | I141: =IFERROR(INDIRECT($B141&"!i21"),"") ->  | K141: =IFERROR(INDIRECT($B141&"!j21"),"") ->  | L141: =IFERROR(INDIRECT($B141&"!k21"),"") ->  | M141: =IFERROR(INDIRECT($B141&"!l21"),"") ->  | N141: =IFERROR(INDIRECT($B141&"!m21"),"") ->  | O141: =IFERROR(INDIRECT($B141&"!n21"),"") ->  | P141: =IFERROR(INDIRECT($B141&"!o121"),"") ->  | AD141: جارى141
A142: 1 | C142: =IFERROR(INDIRECT($B142&"!d22"),"") ->  | H142: =IFERROR(INDIRECT($B142&"!g22"),"") ->  | I142: =IFERROR(INDIRECT($B142&"!i22"),"") ->  | K142: =IFERROR(INDIRECT($B142&"!j22"),"") ->  | L142: =IFERROR(INDIRECT($B142&"!k22"),"") ->  | M142: =IFERROR(INDIRECT($B142&"!l22"),"") ->  | N142: =IFERROR(INDIRECT($B142&"!m22"),"") ->  | O142: =IFERROR(INDIRECT($B142&"!n22"),"") ->  | P142: =IFERROR(INDIRECT($B142&"!o22"),"") ->  | AD142: جارى142
A143: 1 | C143: =IFERROR(INDIRECT($B143&"!d16"),"") ->  | H143: =IFERROR(INDIRECT($B143&"!g16"),"") ->  | I143: =IFERROR(INDIRECT($B143&"!h16"),"") ->  | O143: =IFERROR(INDIRECT($B143&"!n16"),"") ->  | AD143: جارى143
A144: 1 | C144: =IFERROR(INDIRECT($B144&"!d17"),"") ->  | H144: =IFERROR(INDIRECT($B144&"!g17"),"") ->  | I144: =IFERROR(INDIRECT($B144&"!i17"),"") ->  | K144: =IFERROR(INDIRECT($B144&"!j17"),"") ->  | L144: =IFERROR(INDIRECT($B144&"!k17"),"") ->  | M144: =IFERROR(INDIRECT($B144&"!l17"),"") ->  | N144: =IFERROR(INDIRECT($B144&"!m17"),"") ->  | O144: =IFERROR(INDIRECT($B144&"!n17"),"") ->  | P144: =IFERROR(INDIRECT($B144&"!o17"),"") ->  | AD144: جارى144
A145: 1 | C145: =IFERROR(INDIRECT($B145&"!d18"),"") ->  | H145: =IFERROR(INDIRECT($B145&"!g18"),"") ->  | I145: =IFERROR(INDIRECT($B145&"!i18"),"") ->  | K145: =IFERROR(INDIRECT($B145&"!j18"),"") ->  | L145: =IFERROR(INDIRECT($B145&"!k18"),"") ->  | M145: =IFERROR(INDIRECT($B145&"!l18"),"") ->  | N145: =IFERROR(INDIRECT($B145&"!m18"),"") ->  | O145: =IFERROR(INDIRECT($B145&"!n18"),"") ->  | P145: =IFERROR(INDIRECT($B145&"!o18"),"") ->  | AD145: جارى145
A146: 1 | C146: =IFERROR(INDIRECT($B146&"!d19"),"") ->  | H146: =IFERROR(INDIRECT($B146&"!g19"),"") ->  | I146: =IFERROR(INDIRECT($B146&"!i19"),"") ->  | K146: =IFERROR(INDIRECT($B146&"!j19"),"") ->  | L146: =IFERROR(INDIRECT($B146&"!k19"),"") ->  | M146: =IFERROR(INDIRECT($B146&"!l19"),"") ->  | N146: =IFERROR(INDIRECT($B146&"!m19"),"") ->  | O146: =IFERROR(INDIRECT($B146&"!n19"),"") ->  | P146: =IFERROR(INDIRECT($B146&"!o19"),"") ->  | AD146: جارى146
A147: 1 | C147: =IFERROR(INDIRECT($B147&"!d20"),"") ->  | H147: =IFERROR(INDIRECT($B147&"!g20"),"") ->  | I147: =IFERROR(INDIRECT($B147&"!i20"),"") ->  | K147: =IFERROR(INDIRECT($B147&"!j20"),"") ->  | L147: =IFERROR(INDIRECT($B147&"!k20"),"") ->  | M147: =IFERROR(INDIRECT($B147&"!l20"),"") ->  | N147: =IFERROR(INDIRECT($B147&"!m20"),"") ->  | O147: =IFERROR(INDIRECT($B147&"!n20"),"") ->  | P147: =IFERROR(INDIRECT($B147&"!o120"),"") ->  | AD147: جارى147
A148: 1 | C148: =IFERROR(INDIRECT($B148&"!d21"),"") ->  | H148: =IFERROR(INDIRECT($B148&"!g21"),"") ->  | I148: =IFERROR(INDIRECT($B148&"!i21"),"") ->  | K148: =IFERROR(INDIRECT($B148&"!j21"),"") ->  | L148: =IFERROR(INDIRECT($B148&"!k21"),"") ->  | M148: =IFERROR(INDIRECT($B148&"!l21"),"") ->  | N148: =IFERROR(INDIRECT($B148&"!m21"),"") ->  | O148: =IFERROR(INDIRECT($B148&"!n21"),"") ->  | P148: =IFERROR(INDIRECT($B148&"!o121"),"") ->  | AD148: جارى148
A149: 1 | C149: =IFERROR(INDIRECT($B149&"!d22"),"") ->  | H149: =IFERROR(INDIRECT($B149&"!g22"),"") ->  | I149: =IFERROR(INDIRECT($B149&"!i22"),"") ->  | K149: =IFERROR(INDIRECT($B149&"!j22"),"") ->  | L149: =IFERROR(INDIRECT($B149&"!k22"),"") ->  | M149: =IFERROR(INDIRECT($B149&"!l22"),"") ->  | N149: =IFERROR(INDIRECT($B149&"!m22"),"") ->  | O149: =IFERROR(INDIRECT($B149&"!n22"),"") ->  | P149: =IFERROR(INDIRECT($B149&"!o22"),"") ->  | AD149: جارى149
A150: 1 | C150: =IFERROR(INDIRECT($B150&"!d16"),"") ->  | H150: =IFERROR(INDIRECT($B150&"!g16"),"") ->  | I150: =IFERROR(INDIRECT($B150&"!h16"),"") ->  | O150: =IFERROR(INDIRECT($B150&"!n16"),"") ->  | AD150: جارى150
A151: 1 | C151: =IFERROR(INDIRECT($B151&"!d17"),"") ->  | H151: =IFERROR(INDIRECT($B151&"!g17"),"") ->  | I151: =IFERROR(INDIRECT($B151&"!i17"),"") ->  | K151: =IFERROR(INDIRECT($B151&"!j17"),"") ->  | L151: =IFERROR(INDIRECT($B151&"!k17"),"") ->  | M151: =IFERROR(INDIRECT($B151&"!l17"),"") ->  | N151: =IFERROR(INDIRECT($B151&"!m17"),"") ->  | O151: =IFERROR(INDIRECT($B151&"!n17"),"") ->  | P151: =IFERROR(INDIRECT($B151&"!o17"),"") ->  | AD151: جارى151
A152: 1 | C152: =IFERROR(INDIRECT($B152&"!d18"),"") ->  | H152: =IFERROR(INDIRECT($B152&"!g18"),"") ->  | I152: =IFERROR(INDIRECT($B152&"!i18"),"") ->  | K152: =IFERROR(INDIRECT($B152&"!j18"),"") ->  | L152: =IFERROR(INDIRECT($B152&"!k18"),"") ->  | M152: =IFERROR(INDIRECT($B152&"!l18"),"") ->  | N152: =IFERROR(INDIRECT($B152&"!m18"),"") ->  | O152: =IFERROR(INDIRECT($B152&"!n18"),"") ->  | P152: =IFERROR(INDIRECT($B152&"!o18"),"") ->  | AD152: جارى152
A153: 1 | C153: =IFERROR(INDIRECT($B153&"!d19"),"") ->  | H153: =IFERROR(INDIRECT($B153&"!g19"),"") ->  | I153: =IFERROR(INDIRECT($B153&"!i19"),"") ->  | K153: =IFERROR(INDIRECT($B153&"!j19"),"") ->  | L153: =IFERROR(INDIRECT($B153&"!k19"),"") ->  | M153: =IFERROR(INDIRECT($B153&"!l19"),"") ->  | N153: =IFERROR(INDIRECT($B153&"!m19"),"") ->  | O153: =IFERROR(INDIRECT($B153&"!n19"),"") ->  | P153: =IFERROR(INDIRECT($B153&"!o19"),"") ->  | AD153: جارى153
A154: 1 | C154: =IFERROR(INDIRECT($B154&"!d20"),"") ->  | H154: =IFERROR(INDIRECT($B154&"!g20"),"") ->  | I154: =IFERROR(INDIRECT($B154&"!i20"),"") ->  | K154: =IFERROR(INDIRECT($B154&"!j20"),"") ->  | L154: =IFERROR(INDIRECT($B154&"!k20"),"") ->  | M154: =IFERROR(INDIRECT($B154&"!l20"),"") ->  | N154: =IFERROR(INDIRECT($B154&"!m20"),"") ->  | O154: =IFERROR(INDIRECT($B154&"!n20"),"") ->  | P154: =IFERROR(INDIRECT($B154&"!o120"),"") ->  | AD154: جارى154
A155: 1 | C155: =IFERROR(INDIRECT($B155&"!d21"),"") ->  | H155: =IFERROR(INDIRECT($B155&"!g21"),"") ->  | I155: =IFERROR(INDIRECT($B155&"!i21"),"") ->  | K155: =IFERROR(INDIRECT($B155&"!j21"),"") ->  | L155: =IFERROR(INDIRECT($B155&"!k21"),"") ->  | M155: =IFERROR(INDIRECT($B155&"!l21"),"") ->  | N155: =IFERROR(INDIRECT($B155&"!m21"),"") ->  | O155: =IFERROR(INDIRECT($B155&"!n21"),"") ->  | P155: =IFERROR(INDIRECT($B155&"!o121"),"") ->  | AD155: جارى155
A156: 1 | C156: =IFERROR(INDIRECT($B156&"!d22"),"") ->  | H156: =IFERROR(INDIRECT($B156&"!g22"),"") ->  | I156: =IFERROR(INDIRECT($B156&"!i22"),"") ->  | K156: =IFERROR(INDIRECT($B156&"!j22"),"") ->  | L156: =IFERROR(INDIRECT($B156&"!k22"),"") ->  | M156: =IFERROR(INDIRECT($B156&"!l22"),"") ->  | N156: =IFERROR(INDIRECT($B156&"!m22"),"") ->  | O156: =IFERROR(INDIRECT($B156&"!n22"),"") ->  | P156: =IFERROR(INDIRECT($B156&"!o22"),"") ->  | AD156: جارى156
A157: 1 | C157: =IFERROR(INDIRECT($B157&"!d16"),"") ->  | H157: =IFERROR(INDIRECT($B157&"!g16"),"") ->  | I157: =IFERROR(INDIRECT($B157&"!h16"),"") ->  | O157: =IFERROR(INDIRECT($B157&"!n16"),"") ->  | AD157: جارى157
A158: 1 | C158: =IFERROR(INDIRECT($B158&"!d17"),"") ->  | H158: =IFERROR(INDIRECT($B158&"!g17"),"") ->  | I158: =IFERROR(INDIRECT($B158&"!i17"),"") ->  | K158: =IFERROR(INDIRECT($B158&"!j17"),"") ->  | L158: =IFERROR(INDIRECT($B158&"!k17"),"") ->  | M158: =IFERROR(INDIRECT($B158&"!l17"),"") ->  | N158: =IFERROR(INDIRECT($B158&"!m17"),"") ->  | O158: =IFERROR(INDIRECT($B158&"!n17"),"") ->  | P158: =IFERROR(INDIRECT($B158&"!o17"),"") ->  | AD158: جارى158
A159: 1 | C159: =IFERROR(INDIRECT($B159&"!d18"),"") ->  | H159: =IFERROR(INDIRECT($B159&"!g18"),"") ->  | I159: =IFERROR(INDIRECT($B159&"!i18"),"") ->  | K159: =IFERROR(INDIRECT($B159&"!j18"),"") ->  | L159: =IFERROR(INDIRECT($B159&"!k18"),"") ->  | M159: =IFERROR(INDIRECT($B159&"!l18"),"") ->  | N159: =IFERROR(INDIRECT($B159&"!m18"),"") ->  | O159: =IFERROR(INDIRECT($B159&"!n18"),"") ->  | P159: =IFERROR(INDIRECT($B159&"!o18"),"") ->  | AD159: جارى159
A160: 1 | C160: =IFERROR(INDIRECT($B160&"!d19"),"") ->  | H160: =IFERROR(INDIRECT($B160&"!g19"),"") ->  | I160: =IFERROR(INDIRECT($B160&"!i19"),"") ->  | K160: =IFERROR(INDIRECT($B160&"!j19"),"") ->  | L160: =IFERROR(INDIRECT($B160&"!k19"),"") ->  | M160: =IFERROR(INDIRECT($B160&"!l19"),"") ->  | N160: =IFERROR(INDIRECT($B160&"!m19"),"") ->  | O160: =IFERROR(INDIRECT($B160&"!n19"),"") ->  | P160: =IFERROR(INDIRECT($B160&"!o19"),"") ->  | AD160: جارى160
A161: 1 | C161: =IFERROR(INDIRECT($B161&"!d20"),"") ->  | H161: =IFERROR(INDIRECT($B161&"!g20"),"") ->  | I161: =IFERROR(INDIRECT($B161&"!i20"),"") ->  | K161: =IFERROR(INDIRECT($B161&"!j20"),"") ->  | L161: =IFERROR(INDIRECT($B161&"!k20"),"") ->  | M161: =IFERROR(INDIRECT($B161&"!l20"),"") ->  | N161: =IFERROR(INDIRECT($B161&"!m20"),"") ->  | O161: =IFERROR(INDIRECT($B161&"!n20"),"") ->  | P161: =IFERROR(INDIRECT($B161&"!o120"),"") ->  | AD161: جارى161
A162: 1 | C162: =IFERROR(INDIRECT($B162&"!d21"),"") ->  | H162: =IFERROR(INDIRECT($B162&"!g21"),"") ->  | I162: =IFERROR(INDIRECT($B162&"!i21"),"") ->  | K162: =IFERROR(INDIRECT($B162&"!j21"),"") ->  | L162: =IFERROR(INDIRECT($B162&"!k21"),"") ->  | M162: =IFERROR(INDIRECT($B162&"!l21"),"") ->  | N162: =IFERROR(INDIRECT($B162&"!m21"),"") ->  | O162: =IFERROR(INDIRECT($B162&"!n21"),"") ->  | P162: =IFERROR(INDIRECT($B162&"!o121"),"") ->  | AD162: جارى162
A163: 1 | C163: =IFERROR(INDIRECT($B163&"!d22"),"") ->  | H163: =IFERROR(INDIRECT($B163&"!g22"),"") ->  | I163: =IFERROR(INDIRECT($B163&"!i22"),"") ->  | K163: =IFERROR(INDIRECT($B163&"!j22"),"") ->  | L163: =IFERROR(INDIRECT($B163&"!k22"),"") ->  | M163: =IFERROR(INDIRECT($B163&"!l22"),"") ->  | N163: =IFERROR(INDIRECT($B163&"!m22"),"") ->  | O163: =IFERROR(INDIRECT($B163&"!n22"),"") ->  | P163: =IFERROR(INDIRECT($B163&"!o22"),"") ->  | AD163: جارى163
A164: 1 | C164: =IFERROR(INDIRECT($B164&"!d16"),"") ->  | H164: =IFERROR(INDIRECT($B164&"!g16"),"") ->  | I164: =IFERROR(INDIRECT($B164&"!h16"),"") ->  | J164: =IFERROR(INDIRECT($B164&"!i16"),"") ->  | K164: =IFERROR(INDIRECT($B164&"!j16"),"") ->  | L164: =IFERROR(INDIRECT($B164&"!k16"),"") ->  | M164: =IFERROR(INDIRECT($B164&"!l16"),"") ->  | N164: =IFERROR(INDIRECT($B164&"!m16"),"") ->  | O164: =IFERROR(INDIRECT($B164&"!n16"),"") ->  | P164: =IFERROR(INDIRECT($B164&"!o16"),"") ->  | AD164: جارى164
A165: 1 | C165: =IFERROR(INDIRECT($B165&"!d17"),"") ->  | H165: =IFERROR(INDIRECT($B165&"!g17"),"") ->  | I165: =IFERROR(INDIRECT($B165&"!i17"),"") ->  | K165: =IFERROR(INDIRECT($B165&"!j17"),"") ->  | L165: =IFERROR(INDIRECT($B165&"!k17"),"") ->  | M165: =IFERROR(INDIRECT($B165&"!l17"),"") ->  | N165: =IFERROR(INDIRECT($B165&"!m17"),"") ->  | O165: =IFERROR(INDIRECT($B165&"!n17"),"") ->  | P165: =IFERROR(INDIRECT($B165&"!o17"),"") ->  | AD165: جارى165
A166: 1 | C166: =IFERROR(INDIRECT($B166&"!d18"),"") ->  | H166: =IFERROR(INDIRECT($B166&"!g18"),"") ->  | I166: =IFERROR(INDIRECT($B166&"!i18"),"") ->  | K166: =IFERROR(INDIRECT($B166&"!j18"),"") ->  | L166: =IFERROR(INDIRECT($B166&"!k18"),"") ->  | M166: =IFERROR(INDIRECT($B166&"!l18"),"") ->  | N166: =IFERROR(INDIRECT($B166&"!m18"),"") ->  | O166: =IFERROR(INDIRECT($B166&"!n18"),"") ->  | P166: =IFERROR(INDIRECT($B166&"!o18"),"") ->  | AD166: جارى166
A167: 1 | C167: =IFERROR(INDIRECT($B167&"!d19"),"") ->  | H167: =IFERROR(INDIRECT($B167&"!g19"),"") ->  | I167: =IFERROR(INDIRECT($B167&"!i19"),"") ->  | K167: =IFERROR(INDIRECT($B167&"!j19"),"") ->  | L167: =IFERROR(INDIRECT($B167&"!k19"),"") ->  | M167: =IFERROR(INDIRECT($B167&"!l19"),"") ->  | N167: =IFERROR(INDIRECT($B167&"!m19"),"") ->  | O167: =IFERROR(INDIRECT($B167&"!n19"),"") ->  | P167: =IFERROR(INDIRECT($B167&"!o19"),"") ->  | AD167: جارى167
A168: 1 | C168: =IFERROR(INDIRECT($B168&"!d20"),"") ->  | H168: =IFERROR(INDIRECT($B168&"!g20"),"") ->  | I168: =IFERROR(INDIRECT($B168&"!i20"),"") ->  | K168: =IFERROR(INDIRECT($B168&"!j20"),"") ->  | L168: =IFERROR(INDIRECT($B168&"!k20"),"") ->  | M168: =IFERROR(INDIRECT($B168&"!l20"),"") ->  | N168: =IFERROR(INDIRECT($B168&"!m20"),"") ->  | O168: =IFERROR(INDIRECT($B168&"!n20"),"") ->  | P168: =IFERROR(INDIRECT($B168&"!o120"),"") ->  | AD168: جارى168
A169: 1 | C169: =IFERROR(INDIRECT($B169&"!d21"),"") ->  | H169: =IFERROR(INDIRECT($B169&"!g21"),"") ->  | I169: =IFERROR(INDIRECT($B169&"!i21"),"") ->  | K169: =IFERROR(INDIRECT($B169&"!j21"),"") ->  | L169: =IFERROR(INDIRECT($B169&"!k21"),"") ->  | M169: =IFERROR(INDIRECT($B169&"!l21"),"") ->  | N169: =IFERROR(INDIRECT($B169&"!m21"),"") ->  | O169: =IFERROR(INDIRECT($B169&"!n21"),"") ->  | P169: =IFERROR(INDIRECT($B169&"!o121"),"") ->  | AD169: جارى169
A170: 1 | C170: =IFERROR(INDIRECT($B170&"!d22"),"") ->  | H170: =IFERROR(INDIRECT($B170&"!g22"),"") ->  | I170: =IFERROR(INDIRECT($B170&"!i22"),"") ->  | K170: =IFERROR(INDIRECT($B170&"!j22"),"") ->  | L170: =IFERROR(INDIRECT($B170&"!k22"),"") ->  | M170: =IFERROR(INDIRECT($B170&"!l22"),"") ->  | N170: =IFERROR(INDIRECT($B170&"!m22"),"") ->  | O170: =IFERROR(INDIRECT($B170&"!n22"),"") ->  | P170: =IFERROR(INDIRECT($B170&"!o22"),"") ->  | AD170: جارى170
A171: 1 | C171: =IFERROR(INDIRECT($B171&"!d16"),"") ->  | H171: =IFERROR(INDIRECT($B171&"!g16"),"") ->  | I171: =IFERROR(INDIRECT($B171&"!h16"),"") ->  | O171: =IFERROR(INDIRECT($B171&"!n16"),"") ->  | AD171: جارى171
A172: 1 | C172: =IFERROR(INDIRECT($B172&"!d17"),"") ->  | H172: =IFERROR(INDIRECT($B172&"!g17"),"") ->  | I172: =IFERROR(INDIRECT($B172&"!i17"),"") ->  | K172: =IFERROR(INDIRECT($B172&"!j17"),"") ->  | L172: =IFERROR(INDIRECT($B172&"!k17"),"") ->  | M172: =IFERROR(INDIRECT($B172&"!l17"),"") ->  | N172: =IFERROR(INDIRECT($B172&"!m17"),"") ->  | O172: =IFERROR(INDIRECT($B172&"!n17"),"") ->  | P172: =IFERROR(INDIRECT($B172&"!o17"),"") ->  | AD172: جارى172
A173: 1 | C173: =IFERROR(INDIRECT($B173&"!d18"),"") ->  | H173: =IFERROR(INDIRECT($B173&"!g18"),"") ->  | I173: =IFERROR(INDIRECT($B173&"!i18"),"") ->  | K173: =IFERROR(INDIRECT($B173&"!j18"),"") ->  | L173: =IFERROR(INDIRECT($B173&"!k18"),"") ->  | M173: =IFERROR(INDIRECT($B173&"!l18"),"") ->  | N173: =IFERROR(INDIRECT($B173&"!m18"),"") ->  | O173: =IFERROR(INDIRECT($B173&"!n18"),"") ->  | P173: =IFERROR(INDIRECT($B173&"!o18"),"") ->  | AD173: جارى173
A174: 1 | C174: =IFERROR(INDIRECT($B174&"!d19"),"") ->  | H174: =IFERROR(INDIRECT($B174&"!g19"),"") ->  | I174: =IFERROR(INDIRECT($B174&"!i19"),"") ->  | K174: =IFERROR(INDIRECT($B174&"!j19"),"") ->  | L174: =IFERROR(INDIRECT($B174&"!k19"),"") ->  | M174: =IFERROR(INDIRECT($B174&"!l19"),"") ->  | N174: =IFERROR(INDIRECT($B174&"!m19"),"") ->  | O174: =IFERROR(INDIRECT($B174&"!n19"),"") ->  | P174: =IFERROR(INDIRECT($B174&"!o19"),"") ->  | AD174: جارى174
A175: 1 | C175: =IFERROR(INDIRECT($B175&"!d20"),"") ->  | H175: =IFERROR(INDIRECT($B175&"!g20"),"") ->  | I175: =IFERROR(INDIRECT($B175&"!i20"),"") ->  | K175: =IFERROR(INDIRECT($B175&"!j20"),"") ->  | L175: =IFERROR(INDIRECT($B175&"!k20"),"") ->  | M175: =IFERROR(INDIRECT($B175&"!l20"),"") ->  | N175: =IFERROR(INDIRECT($B175&"!m20"),"") ->  | O175: =IFERROR(INDIRECT($B175&"!n20"),"") ->  | P175: =IFERROR(INDIRECT($B175&"!o120"),"") ->  | AD175: جارى175
A176: 1 | C176: =IFERROR(INDIRECT($B176&"!d21"),"") ->  | H176: =IFERROR(INDIRECT($B176&"!g21"),"") ->  | I176: =IFERROR(INDIRECT($B176&"!i21"),"") ->  | K176: =IFERROR(INDIRECT($B176&"!j21"),"") ->  | L176: =IFERROR(INDIRECT($B176&"!k21"),"") ->  | M176: =IFERROR(INDIRECT($B176&"!l21"),"") ->  | N176: =IFERROR(INDIRECT($B176&"!m21"),"") ->  | O176: =IFERROR(INDIRECT($B176&"!n21"),"") ->  | P176: =IFERROR(INDIRECT($B176&"!o121"),"") ->  | AD176: جارى176
A177: 1 | C177: =IFERROR(INDIRECT($B177&"!d22"),"") ->  | H177: =IFERROR(INDIRECT($B177&"!g22"),"") ->  | I177: =IFERROR(INDIRECT($B177&"!i22"),"") ->  | K177: =IFERROR(INDIRECT($B177&"!j22"),"") ->  | L177: =IFERROR(INDIRECT($B177&"!k22"),"") ->  | M177: =IFERROR(INDIRECT($B177&"!l22"),"") ->  | N177: =IFERROR(INDIRECT($B177&"!m22"),"") ->  | O177: =IFERROR(INDIRECT($B177&"!n22"),"") ->  | P177: =IFERROR(INDIRECT($B177&"!o22"),"") ->  | AD177: جارى177
A178: 1 | C178: =IFERROR(INDIRECT($B178&"!d16"),"") ->  | H178: =IFERROR(INDIRECT($B178&"!g16"),"") ->  | I178: =IFERROR(INDIRECT($B178&"!h16"),"") ->  | O178: =IFERROR(INDIRECT($B178&"!n16"),"") ->  | AD178: جارى178
A179: 1 | C179: =IFERROR(INDIRECT($B179&"!d17"),"") ->  | H179: =IFERROR(INDIRECT($B179&"!g17"),"") ->  | I179: =IFERROR(INDIRECT($B179&"!i17"),"") ->  | K179: =IFERROR(INDIRECT($B179&"!j17"),"") ->  | L179: =IFERROR(INDIRECT($B179&"!k17"),"") ->  | M179: =IFERROR(INDIRECT($B179&"!l17"),"") ->  | N179: =IFERROR(INDIRECT($B179&"!m17"),"") ->  | O179: =IFERROR(INDIRECT($B179&"!n17"),"") ->  | P179: =IFERROR(INDIRECT($B179&"!o17"),"") ->  | AD179: جارى179
A180: 1 | C180: =IFERROR(INDIRECT($B180&"!d18"),"") ->  | H180: =IFERROR(INDIRECT($B180&"!g18"),"") ->  | I180: =IFERROR(INDIRECT($B180&"!i18"),"") ->  | K180: =IFERROR(INDIRECT($B180&"!j18"),"") ->  | L180: =IFERROR(INDIRECT($B180&"!k18"),"") ->  | M180: =IFERROR(INDIRECT($B180&"!l18"),"") ->  | N180: =IFERROR(INDIRECT($B180&"!m18"),"") ->  | O180: =IFERROR(INDIRECT($B180&"!n18"),"") ->  | P180: =IFERROR(INDIRECT($B180&"!o18"),"") ->  | AD180: جارى180
A181: 1 | C181: =IFERROR(INDIRECT($B181&"!d19"),"") ->  | H181: =IFERROR(INDIRECT($B181&"!g19"),"") ->  | I181: =IFERROR(INDIRECT($B181&"!i19"),"") ->  | K181: =IFERROR(INDIRECT($B181&"!j19"),"") ->  | L181: =IFERROR(INDIRECT($B181&"!k19"),"") ->  | M181: =IFERROR(INDIRECT($B181&"!l19"),"") ->  | N181: =IFERROR(INDIRECT($B181&"!m19"),"") ->  | O181: =IFERROR(INDIRECT($B181&"!n19"),"") ->  | P181: =IFERROR(INDIRECT($B181&"!o19"),"") -> 
A182: 1 | C182: =IFERROR(INDIRECT($B182&"!d20"),"") ->  | H182: =IFERROR(INDIRECT($B182&"!g20"),"") ->  | I182: =IFERROR(INDIRECT($B182&"!i20"),"") ->  | K182: =IFERROR(INDIRECT($B182&"!j20"),"") ->  | L182: =IFERROR(INDIRECT($B182&"!k20"),"") ->  | M182: =IFERROR(INDIRECT($B182&"!l20"),"") ->  | N182: =IFERROR(INDIRECT($B182&"!m20"),"") ->  | O182: =IFERROR(INDIRECT($B182&"!n20"),"") ->  | P182: =IFERROR(INDIRECT($B182&"!o120"),"") -> 
A183: 1 | C183: =IFERROR(INDIRECT($B183&"!d21"),"") ->  | H183: =IFERROR(INDIRECT($B183&"!g21"),"") ->  | I183: =IFERROR(INDIRECT($B183&"!i21"),"") ->  | K183: =IFERROR(INDIRECT($B183&"!j21"),"") ->  | L183: =IFERROR(INDIRECT($B183&"!k21"),"") ->  | M183: =IFERROR(INDIRECT($B183&"!l21"),"") ->  | N183: =IFERROR(INDIRECT($B183&"!m21"),"") ->  | O183: =IFERROR(INDIRECT($B183&"!n21"),"") ->  | P183: =IFERROR(INDIRECT($B183&"!o121"),"") -> 
A184: 1 | C184: =IFERROR(INDIRECT($B184&"!d22"),"") ->  | H184: =IFERROR(INDIRECT($B184&"!g22"),"") ->  | I184: =IFERROR(INDIRECT($B184&"!i22"),"") ->  | K184: =IFERROR(INDIRECT($B184&"!j22"),"") ->  | L184: =IFERROR(INDIRECT($B184&"!k22"),"") ->  | M184: =IFERROR(INDIRECT($B184&"!l22"),"") ->  | N184: =IFERROR(INDIRECT($B184&"!m22"),"") ->  | O184: =IFERROR(INDIRECT($B184&"!n22"),"") ->  | P184: =IFERROR(INDIRECT($B184&"!o22"),"") -> 
A185: 1 | C185: =IFERROR(INDIRECT($B185&"!d16"),"") ->  | H185: =IFERROR(INDIRECT($B185&"!g16"),"") ->  | I185: =IFERROR(INDIRECT($B185&"!h16"),"") ->  | O185: =IFERROR(INDIRECT($B185&"!n16"),"") -> 
A186: 1 | C186: =IFERROR(INDIRECT($B186&"!d17"),"") ->  | H186: =IFERROR(INDIRECT($B186&"!g17"),"") ->  | I186: =IFERROR(INDIRECT($B186&"!i17"),"") ->  | K186: =IFERROR(INDIRECT($B186&"!j17"),"") ->  | L186: =IFERROR(INDIRECT($B186&"!k17"),"") ->  | M186: =IFERROR(INDIRECT($B186&"!l17"),"") ->  | N186: =IFERROR(INDIRECT($B186&"!m17"),"") ->  | O186: =IFERROR(INDIRECT($B186&"!n17"),"") ->  | P186: =IFERROR(INDIRECT($B186&"!o17"),"") -> 
A187: 1 | C187: =IFERROR(INDIRECT($B187&"!d18"),"") ->  | H187: =IFERROR(INDIRECT($B187&"!g18"),"") ->  | I187: =IFERROR(INDIRECT($B187&"!i18"),"") ->  | K187: =IFERROR(INDIRECT($B187&"!j18"),"") ->  | L187: =IFERROR(INDIRECT($B187&"!k18"),"") ->  | M187: =IFERROR(INDIRECT($B187&"!l18"),"") ->  | N187: =IFERROR(INDIRECT($B187&"!m18"),"") ->  | O187: =IFERROR(INDIRECT($B187&"!n18"),"") ->  | P187: =IFERROR(INDIRECT($B187&"!o18"),"") -> 
A188: 1 | C188: =IFERROR(INDIRECT($B188&"!d19"),"") ->  | H188: =IFERROR(INDIRECT($B188&"!g19"),"") ->  | I188: =IFERROR(INDIRECT($B188&"!i19"),"") ->  | K188: =IFERROR(INDIRECT($B188&"!j19"),"") ->  | L188: =IFERROR(INDIRECT($B188&"!k19"),"") ->  | M188: =IFERROR(INDIRECT($B188&"!l19"),"") ->  | N188: =IFERROR(INDIRECT($B188&"!m19"),"") ->  | O188: =IFERROR(INDIRECT($B188&"!n19"),"") ->  | P188: =IFERROR(INDIRECT($B188&"!o19"),"") -> 
A189: 1 | C189: =IFERROR(INDIRECT($B189&"!d20"),"") ->  | H189: =IFERROR(INDIRECT($B189&"!g20"),"") ->  | I189: =IFERROR(INDIRECT($B189&"!i20"),"") ->  | K189: =IFERROR(INDIRECT($B189&"!j20"),"") ->  | L189: =IFERROR(INDIRECT($B189&"!k20"),"") ->  | M189: =IFERROR(INDIRECT($B189&"!l20"),"") ->  | N189: =IFERROR(INDIRECT($B189&"!m20"),"") ->  | O189: =IFERROR(INDIRECT($B189&"!n20"),"") ->  | P189: =IFERROR(INDIRECT($B189&"!o120"),"") -> 
A190: 1 | C190: =IFERROR(INDIRECT($B190&"!d21"),"") ->  | H190: =IFERROR(INDIRECT($B190&"!g21"),"") ->  | I190: =IFERROR(INDIRECT($B190&"!i21"),"") ->  | K190: =IFERROR(INDIRECT($B190&"!j21"),"") ->  | L190: =IFERROR(INDIRECT($B190&"!k21"),"") ->  | M190: =IFERROR(INDIRECT($B190&"!l21"),"") ->  | N190: =IFERROR(INDIRECT($B190&"!m21"),"") ->  | O190: =IFERROR(INDIRECT($B190&"!n21"),"") ->  | P190: =IFERROR(INDIRECT($B190&"!o121"),"") -> 
A191: 1 | C191: =IFERROR(INDIRECT($B191&"!d22"),"") ->  | H191: =IFERROR(INDIRECT($B191&"!g22"),"") ->  | I191: =IFERROR(INDIRECT($B191&"!i22"),"") ->  | K191: =IFERROR(INDIRECT($B191&"!j22"),"") ->  | L191: =IFERROR(INDIRECT($B191&"!k22"),"") ->  | M191: =IFERROR(INDIRECT($B191&"!l22"),"") ->  | N191: =IFERROR(INDIRECT($B191&"!m22"),"") ->  | O191: =IFERROR(INDIRECT($B191&"!n22"),"") ->  | P191: =IFERROR(INDIRECT($B191&"!o22"),"") -> 
A192: 1 | C192: =IFERROR(INDIRECT($B192&"!d16"),"") ->  | H192: =IFERROR(INDIRECT($B192&"!g16"),"") ->  | I192: =IFERROR(INDIRECT($B192&"!h16"),"") ->  | O192: =IFERROR(INDIRECT($B192&"!n16"),"") -> 
A193: 1 | C193: =IFERROR(INDIRECT($B193&"!d17"),"") ->  | H193: =IFERROR(INDIRECT($B193&"!g17"),"") ->  | I193: =IFERROR(INDIRECT($B193&"!i17"),"") ->  | K193: =IFERROR(INDIRECT($B193&"!j17"),"") ->  | L193: =IFERROR(INDIRECT($B193&"!k17"),"") ->  | M193: =IFERROR(INDIRECT($B193&"!l17"),"") ->  | N193: =IFERROR(INDIRECT($B193&"!m17"),"") ->  | O193: =IFERROR(INDIRECT($B193&"!n17"),"") ->  | P193: =IFERROR(INDIRECT($B193&"!o17"),"") -> 
A194: 1 | C194: =IFERROR(INDIRECT($B194&"!d18"),"") ->  | H194: =IFERROR(INDIRECT($B194&"!g18"),"") ->  | I194: =IFERROR(INDIRECT($B194&"!i18"),"") ->  | K194: =IFERROR(INDIRECT($B194&"!j18"),"") ->  | L194: =IFERROR(INDIRECT($B194&"!k18"),"") ->  | M194: =IFERROR(INDIRECT($B194&"!l18"),"") ->  | N194: =IFERROR(INDIRECT($B194&"!m18"),"") ->  | O194: =IFERROR(INDIRECT($B194&"!n18"),"") ->  | P194: =IFERROR(INDIRECT($B194&"!o18"),"") -> 
A195: 1 | C195: =IFERROR(INDIRECT($B195&"!d19"),"") ->  | H195: =IFERROR(INDIRECT($B195&"!g19"),"") ->  | I195: =IFERROR(INDIRECT($B195&"!i19"),"") ->  | K195: =IFERROR(INDIRECT($B195&"!j19"),"") ->  | L195: =IFERROR(INDIRECT($B195&"!k19"),"") ->  | M195: =IFERROR(INDIRECT($B195&"!l19"),"") ->  | N195: =IFERROR(INDIRECT($B195&"!m19"),"") ->  | O195: =IFERROR(INDIRECT($B195&"!n19"),"") ->  | P195: =IFERROR(INDIRECT($B195&"!o19"),"") -> 
A196: 1 | C196: =IFERROR(INDIRECT($B196&"!d20"),"") ->  | D196: =IFERROR(INDIRECT($B196&"!e10"),"") ->  | E196: =IFERROR(INDIRECT($B196&"!e7"),"") ->  | F196: =IFERROR(INDIRECT($B196&"!e12"),"") ->  | G196: =IFERROR(INDIRECT($B196&"!e13"),"") ->  | H196: =IFERROR(INDIRECT($B196&"!g20"),"") ->  | I196: =IFERROR(INDIRECT($B196&"!i20"),"") ->  | K196: =IFERROR(INDIRECT($B196&"!j20"),"") ->  | L196: =IFERROR(INDIRECT($B196&"!k20"),"") ->  | M196: =IFERROR(INDIRECT($B196&"!l20"),"") ->  | N196: =IFERROR(INDIRECT($B196&"!m20"),"") ->  | O196: =IFERROR(INDIRECT($B196&"!n20"),"") ->  | P196: =IFERROR(INDIRECT($B196&"!o120"),"") -> 
A197: 1 | C197: =IFERROR(INDIRECT($B197&"!d21"),"") ->  | H197: =IFERROR(INDIRECT($B197&"!g21"),"") ->  | I197: =IFERROR(INDIRECT($B197&"!i21"),"") ->  | K197: =IFERROR(INDIRECT($B197&"!j21"),"") ->  | L197: =IFERROR(INDIRECT($B197&"!k21"),"") ->  | M197: =IFERROR(INDIRECT($B197&"!l21"),"") ->  | N197: =IFERROR(INDIRECT($B197&"!m21"),"") ->  | O197: =IFERROR(INDIRECT($B197&"!n21"),"") ->  | P197: =IFERROR(INDIRECT($B197&"!o121"),"") -> 
A198: 1 | C198: =IFERROR(INDIRECT($B198&"!d22"),"") ->  | H198: =IFERROR(INDIRECT($B198&"!g22"),"") ->  | I198: =IFERROR(INDIRECT($B198&"!i22"),"") ->  | K198: =IFERROR(INDIRECT($B198&"!j22"),"") ->  | L198: =IFERROR(INDIRECT($B198&"!k22"),"") ->  | M198: =IFERROR(INDIRECT($B198&"!l22"),"") ->  | N198: =IFERROR(INDIRECT($B198&"!m22"),"") ->  | O198: =IFERROR(INDIRECT($B198&"!n22"),"") ->  | P198: =IFERROR(INDIRECT($B198&"!o22"),"") -> 
A199: 1 | C199: =IFERROR(INDIRECT($B199&"!d16"),"") ->  | H199: =IFERROR(INDIRECT($B199&"!g16"),"") ->  | I199: =IFERROR(INDIRECT($B199&"!h16"),"") ->  | O199: =IFERROR(INDIRECT($B199&"!n16"),"") -> 
A200: 1 | C200: =IFERROR(INDIRECT($B200&"!d17"),"") ->  | H200: =IFERROR(INDIRECT($B200&"!g17"),"") ->  | I200: =IFERROR(INDIRECT($B200&"!i17"),"") ->  | K200: =IFERROR(INDIRECT($B200&"!j17"),"") ->  | L200: =IFERROR(INDIRECT($B200&"!k17"),"") ->  | M200: =IFERROR(INDIRECT($B200&"!l17"),"") ->  | N200: =IFERROR(INDIRECT($B200&"!m17"),"") ->  | O200: =IFERROR(INDIRECT($B200&"!n17"),"") ->  | P200: =IFERROR(INDIRECT($B200&"!o17"),"") -> 
... 2120 more rows

Sheet جارى
G4: شركة الصفوة للمقاولات
G5: مستخلص | I5: جارى1
D6: ○ مشـــــــــــــــــــــــروع:- تركيبات بيوت زراعية بمحور الضبعة
D7: الشركة او المورد او المقاول | E7: أحمد حجازى عبدالحكيم | J7: تاريخ اعداد المستخلص | K7: 2023-06-21
D9: ○ اسم البنـــــــــد: | E9: تركيب هيكل معدنى
D10: ○ رقم العقد :- | E10: 2023/34 | J10: من تاريخ : | K10: 2023-06-06
D11: ○ قيمة العقد:- | E11: 35000 | J11: الي تاريخ : | K11: 2023-06-21
D12: ○ رقم الكلاستــر :- | E12: E12
D13: ○ رقم الصوبـــــــة:- | E13: 2
C15: م | D15: بيــــــــــــــــان الأعمــــــــــال | E15: الكمية بالعقد | F15: قيمة البند | G15: ما سبق | H15: الكمية الحالية | I15: إجمالي الكمية | J15: قيمة المستخلص | K15: قيمة التأمين (10%) | L15: قيمة تأمين بيت الخدمه (5%) | M15: صافى المستحق | N15: الخصم | O15: ملاحظــــــــــــــــــــــات
C16: 1 | D16: تركيب مجاري المطر - كمر- تدعيم اكسات- تدعيم كهات | E16: 1 | F16: 32000 | G16: 0.5 | H16: 0.1 | I16: =H16+G16 -> 0.6 | J16: =H16*F16 -> 3200 | K16: =0.1*J16 -> 320 | L16: =J16*0.05 -> 160 | M16: =J16*0.85 -> 2720
C17: 2 | D17: الاقواس- المدادات | E17: 1 | F17: 42000 | G17: 0.2 | H17: 0.15 | I17: 0.35 | J17: 6300 | K17: 630 | L17: 315 | M17: 5355
C18: 3 | D18: البروفيل | E18: 1 | F18: 12000 | G18: 0.3 | H18: 0.3 | I18: 0.6 | J18: 3600 | K18: 360 | L18: 180 | M18: 3060
C19: 4 | D19: البوابات | E19: 1 | F19: 6000 | G19: 0.15 | H19: 0.6 | I19: 0.75 | J19: 3600 | K19: 360 | L19: 180 | M19: 3060
C20: 5 | D20: النهايز | E20: 1 | F20: 6000 | G20: 0.6 | H20: 0.35 | I20: 0.95 | J20: 2100 | K20: 210 | L20: 105 | M20: 1785
C21: 6 | D21: حامل الثمار | E21: 1 | F21: 10000 | G21: 0.7 | H21: 0.25 | I21: 0.95 | J21: 2500 | K21: 250 | L21: 125 | M21: 2125
C22: 7 | D22: النقل | E22: 1 | F22: 7000 | G22: 0.9 | H22: 0.05 | I22: 0.95 | J22: 350 | K22: 35 | L22: 17.5 | M22: 297.5
C23: إجمـــــــــــــــــــــــــــــــالي المستحق | J23: =SUM(J16:J22) -> 21650 | K23: =SUM(K16:K22) -> 2165 | L23: 1082.5 | M23: 18402.5 | N23: 0
C27: المقاول | D27: مهندس الموقع | F27: مراجعة مالية بالموقع | J27: مدير الموقع | L27: الادارة الهندسيه | O27: مدير الادارة الهندسيه
F28: محاسب/ رضا الخطيب | J28: م/ أحد لاشين
O30: رئيس مجلس الادارة

Sheet جارى2
G4: شركة الصفوة للمقاولات
G5: مستخلص | I5: جارى2
D6: ○ مشـــــــــــــــــــــــروع:- تركيبات بيوت زراعية بمحور الضبعة
D7: الشركة او المورد او المقاول | E7: أحمد حجازى عبدالحكيم | J7: تاريخ اعداد المستخلص | K7: 2023-06-21
D9: ○ اسم البنـــــــــد: | E9: تركيب هيكل معدنى
D10: ○ رقم العقد :- | E10: 2023/34 | J10: من تاريخ : | K10: 2023-06-06
D11: ○ قيمة العقد:- | E11: 35000 | J11: الي تاريخ : | K11: 2023-06-21
D12: ○ رقم الكلاستــر :- | E12: E12
D13: ○ رقم الصوبـــــــة:- | E13: 2
C15: م | D15: بيــــــــــــــــان الأعمــــــــــال | E15: الكمية بالعقد | F15: قيمة البند | G15: ما سبق | H15: الكمية الحالية | I15: إجمالي الكمية | J15: قيمة المستخلص | K15: قيمة التأمين (10%) | L15: قيمة تأمين بيت الخدمه (5%) | M15: صافى المستحق | N15: الخصم | O15: ملاحظــــــــــــــــــــــات | S15: ctrl+shift+k
C16: 1 | D16: تركيب مجاري المطر - كمر- تدعيم اكسات- تدعيم كهات | E16: 1 | F16: 32000 | G16: 0.6 | H16: 0.3 | I16: =H16+G16 -> 0.9 | J16: =H16*F16 -> 9600 | K16: =0.1*J16 -> 960 | L16: =J16*0.05 -> 480 | M16: =J16*0.85 -> 8160
C17: 2 | D17: الاقواس- المدادات | E17: 1 | F17: 42000 | G17: 0.35 | H17: 0.15 | I17: 0.5 | J17: 6300 | K17: 630 | L17: 315 | M17: 5355
C18: 3 | D18: البروفيل | E18: 1 | F18: 12000 | G18: 0.6 | H18: 0.2 | I18: 0.8 | J18: 2400 | K18: 240 | L18: 120 | M18: 2040
C19: 4 | D19: البوابات | E19: 1 | F19: 6000 | G19: 0.75 | H19: 0.1 | I19: 0.85 | J19: 600 | K19: 60 | L19: 30 | M19: 510
C20: 5 | D20: النهايز | E20: 1 | F20: 6000 | G20: 0.95 | H20: 0 | I20: 0.95 | J20: 0 | K20: 0 | L20: 0 | M20: 0
C21: 6 | D21: حامل الثمار | E21: 1 | F21: 10000 | G21: 0.95 | H21: 0 | I21: 0.95 | J21: 0 | K21: 0 | L21: 0 | M21: 0
C22: 7 | D22: النقل | E22: 1 | F22: 7000 | G22: 0.95 | H22: 0 | I22: 0.95 | J22: 0 | K22: 0 | L22: 0 | M22: 0
C23: إجمـــــــــــــــــــــــــــــــالي المستحق | J23: =SUM(J16:J22) -> 18900 | K23: =SUM(K16:K22) -> 1890 | L23: 945 | M23: 16065 | N23: 0
C27: المقاول | D27: مهندس الموقع | F27: مراجعة مالية بالموقع | J27: مدير الموقع | L27: الادارة الهندسيه | O27: مدير الادارة الهندسيه
F28: محاسب/ رضا الخطيب | J28: م/ أحد لاشين
O30: رئيس مجلس الادارة

Sheet جارى3
G4: شركة الصفوة للمقاولات
G5: مستخلص | I5: جارى3
D6: ○ مشـــــــــــــــــــــــروع:- تركيبات بيوت زراعية بمحور الضبعة
D7: الشركة او المورد او المقاول | E7: أحمد حجازى عبدالحكيم | J7: تاريخ اعداد المستخلص | K7: 2023-06-21
D9: ○ اسم البنـــــــــد: | E9: تركيب هيكل معدنى
D10: ○ رقم العقد :- | E10: 2023/34 | J10: من تاريخ : | K10: 2023-06-06
D11: ○ قيمة العقد:- | E11: 35000 | J11: الي تاريخ : | K11: 2023-06-21
D12: ○ رقم الكلاستــر :- | E12: E12
D13: ○ رقم الصوبـــــــة:- | E13: 2
R14: Ctrl+shift+k
C15: م | D15: بيــــــــــــــــان الأعمــــــــــال | E15: الكمية بالعقد | F15: قيمة البند | G15: ما سبق | H15: الكمية الحالية | I15: إجمالي الكمية | J15: قيمة المستخلص | K15: قيمة التأمين (10%) | L15: قيمة تأمين بيت الخدمه (5%) | M15: صافى المستحق | N15: الخصم | O15: ملاحظــــــــــــــــــــــات
C16: 1 | D16: تركيب مجاري المطر - كمر- تدعيم اكسات- تدعيم كهات | E16: 1 | F16: 32000 | G16: 0.9 | H16: 0.05 | I16: =H16+G16 -> 0.95 | J16: =H16*F16 -> 1600 | K16: =0.1*J16 -> 160 | L16: =J16*0.05 -> 80 | M16: =J16*0.85 -> 1360
C17: 2 | D17: الاقواس- المدادات | E17: 1 | F17: 42000 | G17: 0.5 | H17: 0.3 | I17: 0.8 | J17: 12600 | K17: 1260 | L17: 630 | M17: 10710
C18: 3 | D18: البروفيل | E18: 1 | F18: 12000 | G18: 0.8 | H18: 0 | I18: 0.8 | J18: 0 | K18: 0 | L18: 0 | M18: 0
C19: 4 | D19: البوابات | E19: 1 | F19: 6000 | G19: 0.85 | H19: 0 | I19: 0.85 | J19: 0 | K19: 0 | L19: 0 | M19: 0
C20: 5 | D20: النهايز | E20: 1 | F20: 6000 | G20: 0.95 | H20: 0 | I20: 0.95 | J20: 0 | K20: 0 | L20: 0 | M20: 0
C21: 6 | D21: حامل الثمار | E21: 1 | F21: 10000 | G21: 0.95 | H21: 0 | I21: 0.95 | J21: 0 | K21: 0 | L21: 0 | M21: 0
C22: 7 | D22: النقل | E22: 1 | F22: 7000 | G22: 0.95 | H22: 0 | I22: 0.95 | J22: 0 | K22: 0 | L22: 0 | M22: 0
C23: إجمـــــــــــــــــــــــــــــــالي المستحق | J23: =SUM(J16:J22) -> 14200 | K23: =SUM(K16:K22) -> 1420 | L23: 710 | M23: 12070 | N23: 0
C27: المقاول | D27: مهندس الموقع | F27: مراجعة مالية بالموقع | J27: مدير الموقع | L27: الادارة الهندسيه | O27: مدير الادارة الهندسيه
F28: محاسب/ رضا الخطيب | J28: م/ أحد لاشين
O30: رئيس مجلس الادارة

Sheet جارى4
G4: شركة الصفوة للمقاولات
G5: مستخلص | I5: جارى4
D6: ○ مشـــــــــــــــــــــــروع:- تركيبات بيوت زراعية بمحور الضبعة
D7: الشركة او المورد او المقاول | E7: أحمد حجازى عبدالحكيم | J7: تاريخ اعداد المستخلص | K7: 2023-06-21
D9: ○ اسم البنـــــــــد: | E9: تركيب هيكل معدنى
D10: ○ رقم العقد :- | E10: 2023/34 | J10: من تاريخ : | K10: 2023-06-06
D11: ○ قيمة العقد:- | E11: 35000 | J11: الي تاريخ : | K11: 2023-06-21
D12: ○ رقم الكلاستــر :- | E12: E12
D13: ○ رقم الصوبـــــــة:- | E13: 2
C15: م | D15: بيــــــــــــــــان الأعمــــــــــال | E15: الكمية بالعقد | F15: قيمة البند | G15: ما سبق | H15: الكمية الحالية | I15: إجمالي الكمية | J15: قيمة المستخلص | K15: قيمة التأمين (10%) | L15: قيمة تأمين بيت الخدمه (5%) | M15: صافى المستحق | N15: الخصم | O15: ملاحظــــــــــــــــــــــات
C16: 1 | D16: تركيب مجاري المطر - كمر- تدعيم اكسات- تدعيم كهات | E16: 1 | F16: 32000 | G16: 0.5 | H16: 0.1 | I16: =H16+G16 -> 0.6 | J16: =H16*F16 -> 3200 | K16: =0.1*J16 -> 320 | L16: =J16*0.05 -> 160 | M16: =J16*0.85 -> 2720
C17: 2 | D17: الاقواس- المدادات | E17: 1 | F17: 42000 | G17: 0.2 | H17: 0.15 | I17: 0.35 | J17: 6300 | K17: 630 | L17: 315 | M17: 5355
C18: 3 | D18: البروفيل | E18: 1 | F18: 12000 | G18: 0.3 | H18: 0.3 | I18: 0.6 | J18: 3600 | K18: 360 | L18: 180 | M18: 3060
C19: 4 | D19: البوابات | E19: 1 | F19: 6000 | G19: 0.15 | H19: 0.6 | I19: 0.75 | J19: 3600 | K19: 360 | L19: 180 | M19: 3060
C20: 5 | D20: النهايز | E20: 1 | F20: 6000 | G20: 0.6 | H20: 0.35 | I20: 0.95 | J20: 2100 | K20: 210 | L20: 105 | M20: 1785
C21: 6 | D21: حامل الثمار | E21: 1 | F21: 10000 | G21: 0.7 | H21: 0.25 | I21: 0.95 | J21: 2500 | K21: 250 | L21: 125 | M21: 2125
C22: 7 | D22: النقل | E22: 1 | F22: 7000 | G22: 0.9 | H22: 0.05 | I22: 0.95 | J22: 350 | K22: 35 | L22: 17.5 | M22: 297.5
C23: إجمـــــــــــــــــــــــــــــــالي المستحق | J23: =SUM(J16:J22) -> 21650 | K23: =SUM(K16:K22) -> 2165 | L23: 1082.5 | M23: 18402.5 | N23: 0
C27: المقاول | D27: مهندس الموقع | F27: مراجعة مالية بالموقع | J27: مدير الموقع | L27: الادارة الهندسيه | O27: مدير الادارة الهندسيه
F28: محاسب/ رضا الخطيب | J28: م/ أحد لاشين
O30: رئيس مجلس الادارة
